{"text_format":"1","workbook":"xlsx","n_sheets":25,"sheets":["Summary","Duplicate H1 Tags","Duplicate Title Tags","Missing Meta Description","Multiple H1 Tags","Multiple Title Tags","Missing Title Tags","Missing H1 Tag","Long Title Tags","404s","Multiple Meta Description","Short Meta Descriptions","Duplicate Meta Description","URL Appended Parameters","Long Meta Descriptions","Missing Meta Keywords","Short Title Tags","Duplicate Meta Keywords","Multiple Meta Keywords","URL Capitalization","Short H1 Tags","Short Meta Keywords","Remaining Urls_1","Spidered Urls_1","Report Data"],"not_rendered":{"charts":5,"images":1,"macros":1,"external_links":0,"defined_names":2,"comments":1,"pivot_tables":0},"unopened":[],"bounds":{"document_bytes":16777216,"sheet_cells":100000,"rows_first":2000,"rows_last":500,"rows_between":2000,"halvings":0,"cell_chars":16384,"cell_head_chars":4096},"cells_cut":0,"cells_raw":0,"read":"whole","date_system":"1900"}

{"sheet":"Summary","index":0,"n_rows":381,"n_cols":11,"rows_kept":381,"cut":false,"hidden":false,"merged":[[41,1,142,1],[160,1,261,1],[279,1,380,1],[41,3,41,7],[160,3,160,7],[279,3,279,7]]}
[]
[]
[null,"Architecture Diagnostic Report (ADR)"]
[null,"Report Period: 08/29/2011"]
[]
[null,"Issue Summary",null,null,null,null,null,null,"Severity Summary"]
[null,"Percentages",null,null,null,"All Issues by Severity",null,null,"Percentages"]
[null,null,null,null,null,"Severity","Count"]
[null,null,null,null,null,"Critical",{"$f":"I143","v":83}]
[null,null,null,null,null,"Warning",{"$f":"I262","v":39}]
[null,null,null,null,null,"Info",{"$f":"I381","v":8}]
[null,null,null,null,null,"Total Issues",{"$f":"SUM(G9:G11)","v":130}]
[]
[]
[]
[]
[]
[]
[null,null,null,null,null,"URL Summary"]
[null,null,null,null,null,"Type","# of URLs"]
[null,null,null,null,null,"Issues",{"$f":"'Report Data'!L8","v":22}]
[null,null,null,null,null,"Non-issues",{"$f":"'Report Data'!L9","v":0}]
[null,null,null,null,null,"Total URLs Crawled",{"$f":"SUM(G21:G22)","v":22}]
[]
[null,"Issue Breakdown by Severity"]
[null,"Critical"]
[]
[]
[]
[]
[]
[]
[]
[]
[]
[]
[]
[]
[]
[]
[]
[null,"CRITICAL","Tab Names","Long Desc",null,null,null,null,"Issue Count","Critical %","Total Issue %"]
[null,null,"Duplicate Title Tags","Pages found with duplicate title tags",null,null,null,null,18,{"$f":"I43/$I$143","v":0.21686746987951808},{"$f":"IF($G$12<>0,I43/$G$12,0)","v":0.13846153846153847}]
[null,null,"Duplicate H1 Tags","Pages found with duplicate H1 tags",null,null,null,null,18,{"$f":"I44/$I$143","v":0.21686746987951808},{"$f":"IF($G$12<>0,I44/$G$12,0)","v":0.13846153846153847}]
[null,null,"Missing Meta Description","Pages found missing a meta description tag",null,null,null,null,17,{"$f":"I45/$I$143","v":0.20481927710843373},{"$f":"IF($G$12<>0,I45/$G$12,0)","v":0.13076923076923078}]
[null,null,"Multiple H1 Tags","Pages found with multiple H1 tags",null,null,null,null,5,{"$f":"I46/$I$143","v":6.0240963855421686E-2},{"$f":"IF($G$12<>0,I46/$G$12,0)","v":3.8461538461538464E-2}]
[null,null,"Multiple Title Tags","Pages found with multiple title tags",null,null,null,null,4,{"$f":"I47/$I$143","v":4.8192771084337352E-2},{"$f":"IF($G$12<>0,I47/$G$12,0)","v":3.0769230769230771E-2}]
[null,null,"Long Title Tags","Pages found with title tags longer than 150 characters",null,null,null,null,3,{"$f":"I48/$I$143","v":3.614457831325301E-2},{"$f":"IF($G$12<>0,I48/$G$12,0)","v":2.3076923076923078E-2}]
[null,null,"Missing H1 Tag","Pages found missing an H1 tag",null,null,null,null,3,{"$f":"I49/$I$143","v":3.614457831325301E-2},{"$f":"IF($G$12<>0,I49/$G$12,0)","v":2.3076923076923078E-2}]
[null,null,"404s","Page Error found - Page Not Found - 404 Response Code",null,null,null,null,3,{"$f":"I50/$I$143","v":3.614457831325301E-2},{"$f":"IF($G$12<>0,I50/$G$12,0)","v":2.3076923076923078E-2}]
[null,null,"Missing Title Tags","Pages found missing a title tag",null,null,null,null,3,{"$f":"I51/$I$143","v":3.614457831325301E-2},{"$f":"IF($G$12<>0,I51/$G$12,0)","v":2.3076923076923078E-2}]
[null,null,"Duplicate Meta Description","Pages found with duplicate meta description tags",null,null,null,null,2,{"$f":"I52/$I$143","v":2.4096385542168676E-2},{"$f":"IF($G$12<>0,I52/$G$12,0)","v":1.5384615384615385E-2}]
[null,null,"Short Meta Descriptions","Pages found with meta description tag shorter than 125 characters",null,null,null,null,2,{"$f":"I53/$I$143","v":2.4096385542168676E-2},{"$f":"IF($G$12<>0,I53/$G$12,0)","v":1.5384615384615385E-2}]
[null,null,"Appended Parameters","URLs found with appended parameters",null,null,null,null,2,{"$f":"I54/$I$143","v":2.4096385542168676E-2},{"$f":"IF($G$12<>0,I54/$G$12,0)","v":1.5384615384615385E-2}]
[null,null,"Multiple Meta Description","Pages found with multiple meta description tags",null,null,null,null,2,{"$f":"I55/$I$143","v":2.4096385542168676E-2},{"$f":"IF($G$12<>0,I55/$G$12,0)","v":1.5384615384615385E-2}]
[null,null,"Long Meta Descriptions","Pages found with meta descriptions longer than 400 characters",null,null,null,null,1,{"$f":"I56/$I$143","v":1.2048192771084338E-2},{"$f":"IF($G$12<>0,I56/$G$12,0)","v":7.6923076923076927E-3}]
[null,null,0,{"$error":"#N/A"},null,null,null,null,{"$error":"#N/A"},{"$f":"I57/$I$143","v":{"$error":"#N/A"}},{"$f":"IF($G$12<>0,I57/$G$12,0)","v":{"$error":"#N/A"}}]
[null,null,0,{"$error":"#N/A"},null,null,null,null,{"$error":"#N/A"},{"$error":"#N/A"},{"$error":"#N/A"}]
[null,null,0,{"$error":"#N/A"},null,null,null,null,{"$error":"#N/A"},{"$error":"#N/A"},{"$error":"#N/A"}]
[null,null,0,{"$error":"#N/A"},null,null,null,null,{"$error":"#N/A"},{"$error":"#N/A"},{"$error":"#N/A"}]
[null,null,0,{"$error":"#N/A"},null,null,null,null,{"$error":"#N/A"},{"$error":"#N/A"},{"$error":"#N/A"}]
[null,null,0,{"$error":"#N/A"},null,null,null,null,{"$error":"#N/A"},{"$error":"#N/A"},{"$error":"#N/A"}]
[null,null,0,{"$error":"#N/A"},null,null,null,null,{"$error":"#N/A"},{"$error":"#N/A"},{"$error":"#N/A"}]
[null,null,0,{"$error":"#N/A"},null,null,null,null,{"$error":"#N/A"},{"$error":"#N/A"},{"$error":"#N/A"}]
[null,null,0,{"$error":"#N/A"},null,null,null,null,{"$error":"#N/A"},{"$error":"#N/A"},{"$error":"#N/A"}]
[null,null,0,{"$error":"#N/A"},null,null,null,null,{"$error":"#N/A"},{"$error":"#N/A"},{"$error":"#N/A"}]
[null,null,0,{"$error":"#N/A"},null,null,null,null,{"$error":"#N/A"},{"$error":"#N/A"},{"$error":"#N/A"}]
[null,null,0,{"$error":"#N/A"},null,null,null,null,{"$error":"#N/A"},{"$error":"#N/A"},{"$error":"#N/A"}]
[null,null,0,{"$error":"#N/A"},null,null,null,null,{"$error":"#N/A"},{"$error":"#N/A"},{"$error":"#N/A"}]
[null,null,0,{"$error":"#N/A"},null,null,null,null,{"$error":"#N/A"},{"$error":"#N/A"},{"$error":"#N/A"}]
[null,null,0,{"$error":"#N/A"},null,null,null,null,{"$error":"#N/A"},{"$error":"#N/A"},{"$error":"#N/A"}]
[null,null,0,{"$error":"#N/A"},null,null,null,null,{"$error":"#N/A"},{"$error":"#N/A"},{"$error":"#N/A"}]
[null,null,0,{"$error":"#N/A"},null,null,null,null,{"$error":"#N/A"},{"$error":"#N/A"},{"$error":"#N/A"}]
[null,null,0,{"$error":"#N/A"},null,null,null,null,{"$error":"#N/A"},{"$error":"#N/A"},{"$error":"#N/A"}]
[null,null,0,{"$error":"#N/A"},null,null,null,null,{"$error":"#N/A"},{"$error":"#N/A"},{"$error":"#N/A"}]
[null,null,0,{"$error":"#N/A"},null,null,null,null,{"$error":"#N/A"},{"$error":"#N/A"},{"$error":"#N/A"}]
[null,null,0,{"$error":"#N/A"},null,null,null,null,{"$error":"#N/A"},{"$error":"#N/A"},{"$error":"#N/A"}]
[null,null,0,{"$error":"#N/A"},null,null,null,null,{"$error":"#N/A"},{"$error":"#N/A"},{"$error":"#N/A"}]
[null,null,0,{"$error":"#N/A"},null,null,null,null,{"$error":"#N/A"},{"$error":"#N/A"},{"$error":"#N/A"}]
[null,null,0,{"$error":"#N/A"},null,null,null,null,{"$error":"#N/A"},{"$error":"#N/A"},{"$error":"#N/A"}]
[null,null,0,{"$error":"#N/A"},null,null,null,null,{"$error":"#N/A"},{"$error":"#N/A"},{"$error":"#N/A"}]
[null,null,0,{"$error":"#N/A"},null,null,null,null,{"$error":"#N/A"},{"$error":"#N/A"},{"$error":"#N/A"}]
[null,null,0,{"$error":"#N/A"},null,null,null,null,{"$error":"#N/A"},{"$error":"#N/A"},{"$error":"#N/A"}]
[null,null,0,{"$error":"#N/A"},null,null,null,null,{"$error":"#N/A"},{"$error":"#N/A"},{"$error":"#N/A"}]
[null,null,0,{"$error":"#N/A"},null,null,null,null,{"$error":"#N/A"},{"$error":"#N/A"},{"$error":"#N/A"}]
[null,null,0,{"$error":"#N/A"},null,null,null,null,{"$error":"#N/A"},{"$error":"#N/A"},{"$error":"#N/A"}]
[null,null,0,{"$error":"#N/A"},null,null,null,null,{"$error":"#N/A"},{"$error":"#N/A"},{"$error":"#N/A"}]
[null,null,0,{"$error":"#N/A"},null,null,null,null,{"$error":"#N/A"},{"$error":"#N/A"},{"$error":"#N/A"}]
[null,null,0,{"$error":"#N/A"},null,null,null,null,{"$error":"#N/A"},{"$error":"#N/A"},{"$error":"#N/A"}]
[null,null,0,{"$error":"#N/A"},null,null,null,null,{"$error":"#N/A"},{"$error":"#N/A"},{"$error":"#N/A"}]
[null,null,0,{"$error":"#N/A"},null,null,null,null,{"$error":"#N/A"},{"$error":"#N/A"},{"$error":"#N/A"}]
[null,null,0,{"$error":"#N/A"},null,null,null,null,{"$error":"#N/A"},{"$error":"#N/A"},{"$error":"#N/A"}]
[null,null,0,{"$error":"#N/A"},null,null,null,null,{"$error":"#N/A"},{"$error":"#N/A"},{"$error":"#N/A"}]
[null,null,0,{"$error":"#N/A"},null,null,null,null,{"$error":"#N/A"},{"$error":"#N/A"},{"$error":"#N/A"}]
[null,null,0,{"$error":"#N/A"},null,null,null,null,{"$error":"#N/A"},{"$error":"#N/A"},{"$error":"#N/A"}]
[null,null,0,{"$error":"#N/A"},null,null,null,null,{"$error":"#N/A"},{"$error":"#N/A"},{"$error":"#N/A"}]
[null,null,0,{"$error":"#N/A"},null,null,null,null,{"$error":"#N/A"},{"$error":"#N/A"},{"$error":"#N/A"}]
[null,null,0,{"$error":"#N/A"},null,null,null,null,{"$error":"#N/A"},{"$error":"#N/A"},{"$error":"#N/A"}]
[null,null,0,{"$error":"#N/A"},null,null,null,null,{"$error":"#N/A"},{"$error":"#N/A"},{"$error":"#N/A"}]
[null,null,0,{"$error":"#N/A"},null,null,null,null,{"$error":"#N/A"},{"$error":"#N/A"},{"$error":"#N/A"}]
[null,null,0,{"$error":"#N/A"},null,null,null,null,{"$error":"#N/A"},{"$error":"#N/A"},{"$error":"#N/A"}]
[null,null,0,{"$error":"#N/A"},null,null,null,null,{"$error":"#N/A"},{"$error":"#N/A"},{"$error":"#N/A"}]
[null,null,0,{"$error":"#N/A"},null,null,null,null,{"$error":"#N/A"},{"$error":"#N/A"},{"$error":"#N/A"}]
[null,null,0,{"$error":"#N/A"},null,null,null,null,{"$error":"#N/A"},{"$error":"#N/A"},{"$error":"#N/A"}]
[null,null,0,{"$error":"#N/A"},null,null,null,null,{"$error":"#N/A"},{"$error":"#N/A"},{"$error":"#N/A"}]
[null,null,0,{"$error":"#N/A"},null,null,null,null,{"$error":"#N/A"},{"$error":"#N/A"},{"$error":"#N/A"}]
[null,null,0,{"$error":"#N/A"},null,null,null,null,{"$error":"#N/A"},{"$error":"#N/A"},{"$error":"#N/A"}]
[null,null,0,{"$error":"#N/A"},null,null,null,null,{"$error":"#N/A"},{"$f":"I108/$I$143","v":{"$error":"#N/A"}},{"$f":"IF($G$12<>0,I108/$G$12,0)","v":{"$error":"#N/A"}}]
[null,null,0,{"$error":"#N/A"},null,null,null,null,{"$error":"#N/A"},{"$error":"#N/A"},{"$error":"#N/A"}]
[null,null,0,{"$error":"#N/A"},null,null,null,null,{"$error":"#N/A"},{"$error":"#N/A"},{"$error":"#N/A"}]
[null,null,0,{"$error":"#N/A"},null,null,null,null,{"$error":"#N/A"},{"$error":"#N/A"},{"$error":"#N/A"}]
[null,null,0,{"$error":"#N/A"},null,null,null,null,{"$error":"#N/A"},{"$error":"#N/A"},{"$error":"#N/A"}]
[null,null,0,{"$error":"#N/A"},null,null,null,null,{"$error":"#N/A"},{"$error":"#N/A"},{"$error":"#N/A"}]
[null,null,0,{"$error":"#N/A"},null,null,null,null,{"$error":"#N/A"},{"$error":"#N/A"},{"$error":"#N/A"}]
[null,null,0,{"$error":"#N/A"},null,null,null,null,{"$error":"#N/A"},{"$error":"#N/A"},{"$error":"#N/A"}]
[null,null,0,{"$error":"#N/A"},null,null,null,null,{"$error":"#N/A"},{"$error":"#N/A"},{"$error":"#N/A"}]
[null,null,0,{"$error":"#N/A"},null,null,null,null,{"$error":"#N/A"},{"$error":"#N/A"},{"$error":"#N/A"}]
[null,null,0,{"$error":"#N/A"},null,null,null,null,{"$error":"#N/A"},{"$error":"#N/A"},{"$error":"#N/A"}]
[null,null,0,{"$error":"#N/A"},null,null,null,null,{"$error":"#N/A"},{"$error":"#N/A"},{"$error":"#N/A"}]
[null,null,0,{"$error":"#N/A"},null,null,null,null,{"$error":"#N/A"},{"$error":"#N/A"},{"$error":"#N/A"}]
[null,null,0,{"$error":"#N/A"},null,null,null,null,{"$error":"#N/A"},{"$error":"#N/A"},{"$error":"#N/A"}]
[null,null,0,{"$error":"#N/A"},null,null,null,null,{"$error":"#N/A"},{"$error":"#N/A"},{"$error":"#N/A"}]
[null,null,0,{"$error":"#N/A"},null,null,null,null,{"$error":"#N/A"},{"$error":"#N/A"},{"$error":"#N/A"}]
[null,null,0,{"$error":"#N/A"},null,null,null,null,{"$error":"#N/A"},{"$error":"#N/A"},{"$error":"#N/A"}]
[null,null,0,{"$error":"#N/A"},null,null,null,null,{"$error":"#N/A"},{"$error":"#N/A"},{"$error":"#N/A"}]
[null,null,0,{"$error":"#N/A"},null,null,null,null,{"$error":"#N/A"},{"$error":"#N/A"},{"$error":"#N/A"}]
[null,null,0,{"$error":"#N/A"},null,null,null,null,{"$error":"#N/A"},{"$error":"#N/A"},{"$error":"#N/A"}]
[null,null,0,{"$error":"#N/A"},null,null,null,null,{"$error":"#N/A"},{"$error":"#N/A"},{"$error":"#N/A"}]
[null,null,0,{"$error":"#N/A"},null,null,null,null,{"$error":"#N/A"},{"$error":"#N/A"},{"$error":"#N/A"}]
[null,null,0,{"$error":"#N/A"},null,null,null,null,{"$error":"#N/A"},{"$error":"#N/A"},{"$error":"#N/A"}]
[null,null,0,{"$error":"#N/A"},null,null,null,null,{"$error":"#N/A"},{"$error":"#N/A"},{"$error":"#N/A"}]
[null,null,0,{"$error":"#N/A"},null,null,null,null,{"$error":"#N/A"},{"$error":"#N/A"},{"$error":"#N/A"}]
[null,null,0,{"$error":"#N/A"},null,null,null,null,{"$error":"#N/A"},{"$error":"#N/A"},{"$error":"#N/A"}]
[null,null,0,{"$error":"#N/A"},null,null,null,null,{"$error":"#N/A"},{"$error":"#N/A"},{"$error":"#N/A"}]
[null,null,0,{"$error":"#N/A"},null,null,null,null,{"$error":"#N/A"},{"$error":"#N/A"},{"$error":"#N/A"}]
[null,null,0,{"$error":"#N/A"},null,null,null,null,{"$error":"#N/A"},{"$error":"#N/A"},{"$error":"#N/A"}]
[null,null,0,{"$error":"#N/A"},null,null,null,null,{"$error":"#N/A"},{"$error":"#N/A"},{"$error":"#N/A"}]
[null,null,0,{"$error":"#N/A"},null,null,null,null,{"$error":"#N/A"},{"$error":"#N/A"},{"$error":"#N/A"}]
[null,null,0,{"$error":"#N/A"},null,null,null,null,{"$error":"#N/A"},{"$error":"#N/A"},{"$error":"#N/A"}]
[null,null,0,{"$error":"#N/A"},null,null,null,null,{"$error":"#N/A"},{"$error":"#N/A"},{"$error":"#N/A"}]
[null,null,0,{"$error":"#N/A"},null,null,null,null,{"$error":"#N/A"},{"$error":"#N/A"},{"$error":"#N/A"}]
[null,null,0,{"$error":"#N/A"},null,null,null,null,{"$error":"#N/A"},{"$error":"#N/A"},{"$error":"#N/A"}]
[null,null,null,null,null,null,null,null,{"$f":"SUM(I43:I56)","v":83},{"$f":"IFERROR(I143/$I$143,0)","v":1},{"$f":"IFERROR(IF($G$12<>0,I143/$G$12,0),0)","v":0.63846153846153841}]
[]
[null,"Warning"]
[]
[null,null,null,null,{"$f":"SUM(E53:E66)","v":0}]
[]
[]
[]
[]
[]
[]
[]
[]
[]
[]
[]
[]
[]
[null,"WARNING","Tab Names","Long Desc",null,null,null,null,"Issue Count","Warning %","Total Issue %"]
[null,null,"Missing Meta Keywords","Pages found missing a meta keyword tag",null,null,null,null,14,{"$f":"I162/$I$262","v":0.35897435897435898},{"$f":"IF($G$12<>0,I162/$G$12,0)","v":0.1076923076923077}]
[null,null,"Short Title Tags","Pages found with title tag shorter than 20 characters",null,null,null,null,12,{"$f":"I163/$I$262","v":0.30769230769230771},{"$f":"IF($G$12<>0,I163/$G$12,0)","v":9.2307692307692313E-2}]
[null,null,"Duplicate Meta Keywords","Pages found with duplicate meta keyword tags",null,null,null,null,8,{"$f":"I164/$I$262","v":0.20512820512820512},{"$f":"IF($G$12<>0,I164/$G$12,0)","v":6.1538461538461542E-2}]
[null,null,"Multiple Meta Keywords","Pages found with multiple meta keyword tags",null,null,null,null,3,{"$f":"I165/$I$262","v":7.6923076923076927E-2},{"$f":"IF($G$12<>0,I165/$G$12,0)","v":2.3076923076923078E-2}]
[null,null,"URL Capitalization","URLs found with capital lettering",null,null,null,null,2,{"$f":"I166/$I$262","v":5.128205128205128E-2},{"$f":"IF($G$12<>0,I166/$G$12,0)","v":1.5384615384615385E-2}]
[null,null,0,{"$error":"#N/A"},null,null,null,null,{"$error":"#N/A"},{"$f":"I167/$I$262","v":{"$error":"#N/A"}},{"$f":"IF($G$12<>0,I167/$G$12,0)","v":{"$error":"#N/A"}}]
[null,null,0,{"$error":"#N/A"},null,null,null,null,{"$error":"#N/A"},{"$f":"I168/$I$262","v":{"$error":"#N/A"}},{"$f":"IF($G$12<>0,I168/$G$12,0)","v":{"$error":"#N/A"}}]
[null,null,0,{"$error":"#N/A"},null,null,null,null,{"$error":"#N/A"},{"$error":"#N/A"},{"$error":"#N/A"}]
[null,null,0,{"$error":"#N/A"},null,null,null,null,{"$error":"#N/A"},{"$error":"#N/A"},{"$error":"#N/A"}]
[null,null,0,{"$error":"#N/A"},null,null,null,null,{"$error":"#N/A"},{"$error":"#N/A"},{"$error":"#N/A"}]
[null,null,0,{"$error":"#N/A"},null,null,null,null,{"$error":"#N/A"},{"$error":"#N/A"},{"$error":"#N/A"}]
[null,null,0,{"$error":"#N/A"},null,null,null,null,{"$error":"#N/A"},{"$error":"#N/A"},{"$error":"#N/A"}]
[null,null,0,{"$error":"#N/A"},null,null,null,null,{"$error":"#N/A"},{"$error":"#N/A"},{"$error":"#N/A"}]
[null,null,0,{"$error":"#N/A"},null,null,null,null,{"$error":"#N/A"},{"$error":"#N/A"},{"$error":"#N/A"}]
[null,null,0,{"$error":"#N/A"},null,null,null,null,{"$error":"#N/A"},{"$error":"#N/A"},{"$error":"#N/A"}]
[null,null,0,{"$error":"#N/A"},null,null,null,null,{"$error":"#N/A"},{"$error":"#N/A"},{"$error":"#N/A"}]
[null,null,0,{"$error":"#N/A"},null,null,null,null,{"$error":"#N/A"},{"$error":"#N/A"},{"$error":"#N/A"}]
[null,null,0,{"$error":"#N/A"},null,null,null,null,{"$error":"#N/A"},{"$error":"#N/A"},{"$error":"#N/A"}]
[null,null,0,{"$error":"#N/A"},null,null,null,null,{"$error":"#N/A"},{"$error":"#N/A"},{"$error":"#N/A"}]
[null,null,0,{"$error":"#N/A"},null,null,null,null,{"$error":"#N/A"},{"$error":"#N/A"},{"$error":"#N/A"}]
[null,null,0,{"$error":"#N/A"},null,null,null,null,{"$error":"#N/A"},{"$error":"#N/A"},{"$error":"#N/A"}]
[null,null,0,{"$error":"#N/A"},null,null,null,null,{"$error":"#N/A"},{"$error":"#N/A"},{"$error":"#N/A"}]
[null,null,0,{"$error":"#N/A"},null,null,null,null,{"$error":"#N/A"},{"$error":"#N/A"},{"$error":"#N/A"}]
[null,null,0,{"$error":"#N/A"},null,null,null,null,{"$error":"#N/A"},{"$error":"#N/A"},{"$error":"#N/A"}]
[null,null,0,{"$error":"#N/A"},null,null,null,null,{"$error":"#N/A"},{"$error":"#N/A"},{"$error":"#N/A"}]
[null,null,0,{"$error":"#N/A"},null,null,null,null,{"$error":"#N/A"},{"$error":"#N/A"},{"$error":"#N/A"}]
[null,null,0,{"$error":"#N/A"},null,null,null,null,{"$error":"#N/A"},{"$error":"#N/A"},{"$error":"#N/A"}]
[null,null,0,{"$error":"#N/A"},null,null,null,null,{"$error":"#N/A"},{"$error":"#N/A"},{"$error":"#N/A"}]
[null,null,0,{"$error":"#N/A"},null,null,null,null,{"$error":"#N/A"},{"$error":"#N/A"},{"$error":"#N/A"}]
[null,null,0,{"$error":"#N/A"},null,null,null,null,{"$error":"#N/A"},{"$error":"#N/A"},{"$error":"#N/A"}]
[null,null,0,{"$error":"#N/A"},null,null,null,null,{"$error":"#N/A"},{"$error":"#N/A"},{"$error":"#N/A"}]
[null,null,0,{"$error":"#N/A"},null,null,null,null,{"$error":"#N/A"},{"$error":"#N/A"},{"$error":"#N/A"}]
[null,null,0,{"$error":"#N/A"},null,null,null,null,{"$error":"#N/A"},{"$error":"#N/A"},{"$error":"#N/A"}]
[null,null,0,{"$error":"#N/A"},null,null,null,null,{"$error":"#N/A"},{"$error":"#N/A"},{"$error":"#N/A"}]
[null,null,0,{"$error":"#N/A"},null,null,null,null,{"$error":"#N/A"},{"$error":"#N/A"},{"$error":"#N/A"}]
[null,null,0,{"$error":"#N/A"},null,null,null,null,{"$error":"#N/A"},{"$error":"#N/A"},{"$error":"#N/A"}]
[null,null,0,{"$error":"#N/A"},null,null,null,null,{"$error":"#N/A"},{"$error":"#N/A"},{"$error":"#N/A"}]
[null,null,0,{"$error":"#N/A"},null,null,null,null,{"$error":"#N/A"},{"$error":"#N/A"},{"$error":"#N/A"}]
[null,null,0,{"$error":"#N/A"},null,null,null,null,{"$error":"#N/A"},{"$error":"#N/A"},{"$error":"#N/A"}]
[null,null,0,{"$error":"#N/A"},null,null,null,null,{"$error":"#N/A"},{"$error":"#N/A"},{"$error":"#N/A"}]
[null,null,0,{"$error":"#N/A"},null,null,null,null,{"$error":"#N/A"},{"$error":"#N/A"},{"$error":"#N/A"}]
[null,null,0,{"$error":"#N/A"},null,null,null,null,{"$error":"#N/A"},{"$error":"#N/A"},{"$error":"#N/A"}]
[null,null,0,{"$error":"#N/A"},null,null,null,null,{"$error":"#N/A"},{"$error":"#N/A"},{"$error":"#N/A"}]
[null,null,0,{"$error":"#N/A"},null,null,null,null,{"$error":"#N/A"},{"$error":"#N/A"},{"$error":"#N/A"}]
[null,null,0,{"$error":"#N/A"},null,null,null,null,{"$error":"#N/A"},{"$error":"#N/A"},{"$error":"#N/A"}]
[null,null,0,{"$error":"#N/A"},null,null,null,null,{"$error":"#N/A"},{"$error":"#N/A"},{"$error":"#N/A"}]
[null,null,0,{"$error":"#N/A"},null,null,null,null,{"$error":"#N/A"},{"$error":"#N/A"},{"$error":"#N/A"}]
[null,null,0,{"$error":"#N/A"},null,null,null,null,{"$error":"#N/A"},{"$error":"#N/A"},{"$error":"#N/A"}]
[null,null,0,{"$error":"#N/A"},null,null,null,null,{"$error":"#N/A"},{"$error":"#N/A"},{"$error":"#N/A"}]
[null,null,0,{"$error":"#N/A"},null,null,null,null,{"$error":"#N/A"},{"$error":"#N/A"},{"$error":"#N/A"}]
[null,null,0,{"$error":"#N/A"},null,null,null,null,{"$error":"#N/A"},{"$error":"#N/A"},{"$error":"#N/A"}]
[null,null,0,{"$error":"#N/A"},null,null,null,null,{"$error":"#N/A"},{"$error":"#N/A"},{"$error":"#N/A"}]
[null,null,0,{"$error":"#N/A"},null,null,null,null,{"$error":"#N/A"},{"$error":"#N/A"},{"$error":"#N/A"}]
[null,null,0,{"$error":"#N/A"},null,null,null,null,{"$error":"#N/A"},{"$error":"#N/A"},{"$error":"#N/A"}]
[null,null,0,{"$error":"#N/A"},null,null,null,null,{"$error":"#N/A"},{"$error":"#N/A"},{"$error":"#N/A"}]
[null,null,0,{"$error":"#N/A"},null,null,null,null,{"$error":"#N/A"},{"$error":"#N/A"},{"$error":"#N/A"}]
[null,null,0,{"$error":"#N/A"},null,null,null,null,{"$error":"#N/A"},{"$error":"#N/A"},{"$error":"#N/A"}]
[null,null,0,{"$error":"#N/A"},null,null,null,null,{"$error":"#N/A"},{"$error":"#N/A"},{"$error":"#N/A"}]
[null,null,0,{"$error":"#N/A"},null,null,null,null,{"$error":"#N/A"},{"$error":"#N/A"},{"$error":"#N/A"}]
[null,null,0,{"$error":"#N/A"},null,null,null,null,{"$error":"#N/A"},{"$error":"#N/A"},{"$error":"#N/A"}]
[null,null,0,{"$error":"#N/A"},null,null,null,null,{"$error":"#N/A"},{"$error":"#N/A"},{"$error":"#N/A"}]
[null,null,0,{"$error":"#N/A"},null,null,null,null,{"$error":"#N/A"},{"$error":"#N/A"},{"$error":"#N/A"}]
[null,null,0,{"$error":"#N/A"},null,null,null,null,{"$error":"#N/A"},{"$error":"#N/A"},{"$error":"#N/A"}]
[null,null,0,{"$error":"#N/A"},null,null,null,null,{"$error":"#N/A"},{"$error":"#N/A"},{"$error":"#N/A"}]
[null,null,0,{"$error":"#N/A"},null,null,null,null,{"$error":"#N/A"},{"$error":"#N/A"},{"$error":"#N/A"}]
[null,null,0,{"$error":"#N/A"},null,null,null,null,{"$error":"#N/A"},{"$error":"#N/A"},{"$f":"IF($G$12<>0,I227/$G$12,0)","v":{"$error":"#N/A"}}]
[null,null,0,{"$error":"#N/A"},null,null,null,null,{"$error":"#N/A"},{"$error":"#N/A"},{"$error":"#N/A"}]
[null,null,0,{"$error":"#N/A"},null,null,null,null,{"$error":"#N/A"},{"$error":"#N/A"},{"$error":"#N/A"}]
[null,null,0,{"$error":"#N/A"},null,null,null,null,{"$error":"#N/A"},{"$error":"#N/A"},{"$error":"#N/A"}]
[null,null,0,{"$error":"#N/A"},null,null,null,null,{"$error":"#N/A"},{"$error":"#N/A"},{"$error":"#N/A"}]
[null,null,0,{"$error":"#N/A"},null,null,null,null,{"$error":"#N/A"},{"$f":"I232/$I$262","v":{"$error":"#N/A"}},{"$error":"#N/A"}]
[null,null,0,{"$error":"#N/A"},null,null,null,null,{"$error":"#N/A"},{"$error":"#N/A"},{"$error":"#N/A"}]
[null,null,0,{"$error":"#N/A"},null,null,null,null,{"$error":"#N/A"},{"$error":"#N/A"},{"$error":"#N/A"}]
[null,null,0,{"$error":"#N/A"},null,null,null,null,{"$error":"#N/A"},{"$error":"#N/A"},{"$error":"#N/A"}]
[null,null,0,{"$error":"#N/A"},null,null,null,null,{"$error":"#N/A"},{"$error":"#N/A"},{"$error":"#N/A"}]
[null,null,0,{"$error":"#N/A"},null,null,null,null,{"$error":"#N/A"},{"$error":"#N/A"},{"$error":"#N/A"}]
[null,null,0,{"$error":"#N/A"},null,null,null,null,{"$error":"#N/A"},{"$error":"#N/A"},{"$error":"#N/A"}]
[null,null,0,{"$error":"#N/A"},null,null,null,null,{"$error":"#N/A"},{"$error":"#N/A"},{"$error":"#N/A"}]
[null,null,0,{"$error":"#N/A"},null,null,null,null,{"$error":"#N/A"},{"$error":"#N/A"},{"$error":"#N/A"}]
[null,null,0,{"$error":"#N/A"},null,null,null,null,{"$error":"#N/A"},{"$error":"#N/A"},{"$error":"#N/A"}]
[null,null,0,{"$error":"#N/A"},null,null,null,null,{"$error":"#N/A"},{"$error":"#N/A"},{"$error":"#N/A"}]
[null,null,0,{"$error":"#N/A"},null,null,null,null,{"$error":"#N/A"},{"$error":"#N/A"},{"$error":"#N/A"}]
[null,null,0,{"$error":"#N/A"},null,null,null,null,{"$error":"#N/A"},{"$error":"#N/A"},{"$error":"#N/A"}]
[null,null,0,{"$error":"#N/A"},null,null,null,null,{"$error":"#N/A"},{"$error":"#N/A"},{"$error":"#N/A"}]
[null,null,0,{"$error":"#N/A"},null,null,null,null,{"$error":"#N/A"},{"$error":"#N/A"},{"$error":"#N/A"}]
[null,null,0,{"$error":"#N/A"},null,null,null,null,{"$error":"#N/A"},{"$error":"#N/A"},{"$error":"#N/A"}]
[null,null,0,{"$error":"#N/A"},null,null,null,null,{"$error":"#N/A"},{"$error":"#N/A"},{"$error":"#N/A"}]
[null,null,0,{"$error":"#N/A"},null,null,null,null,{"$error":"#N/A"},{"$error":"#N/A"},{"$error":"#N/A"}]
[null,null,0,{"$error":"#N/A"},null,null,null,null,{"$error":"#N/A"},{"$error":"#N/A"},{"$error":"#N/A"}]
[null,null,0,{"$error":"#N/A"},null,null,null,null,{"$error":"#N/A"},{"$error":"#N/A"},{"$error":"#N/A"}]
[null,null,0,{"$error":"#N/A"},null,null,null,null,{"$error":"#N/A"},{"$error":"#N/A"},{"$error":"#N/A"}]
[null,null,0,{"$error":"#N/A"},null,null,null,null,{"$error":"#N/A"},{"$error":"#N/A"},{"$error":"#N/A"}]
[null,null,0,{"$error":"#N/A"},null,null,null,null,{"$error":"#N/A"},{"$error":"#N/A"},{"$error":"#N/A"}]
[null,null,0,{"$error":"#N/A"},null,null,null,null,{"$error":"#N/A"},{"$error":"#N/A"},{"$error":"#N/A"}]
[null,null,0,{"$error":"#N/A"},null,null,null,null,{"$error":"#N/A"},{"$error":"#N/A"},{"$error":"#N/A"}]
[null,null,0,{"$error":"#N/A"},null,null,null,null,{"$error":"#N/A"},{"$error":"#N/A"},{"$error":"#N/A"}]
[null,null,0,{"$error":"#N/A"},null,null,null,null,{"$error":"#N/A"},{"$error":"#N/A"},{"$error":"#N/A"}]
[null,null,0,{"$error":"#N/A"},null,null,null,null,{"$error":"#N/A"},{"$error":"#N/A"},{"$error":"#N/A"}]
[null,null,0,{"$error":"#N/A"},null,null,null,null,{"$error":"#N/A"},{"$error":"#N/A"},{"$error":"#N/A"}]
[null,null,0,{"$error":"#N/A"},null,null,null,null,{"$error":"#N/A"},{"$error":"#N/A"},{"$error":"#N/A"}]
[null,null,null,null,null,null,null,null,{"$f":"SUM(I162:I166)","v":39},{"$f":"IFERROR(I262/$I$262,0)","v":1},{"$f":"IFERROR(IF($G$12<>0,I262/$G$12,0),0)","v":0.3}]
[]
[null,"Info"]
[]
[]
[]
[]
[]
[]
[]
[]
[]
[]
[]
[]
[null,null,"URL Underscores","URLs found using underscores",{"$error":"#REF!"}]
[]
[]
[null,"INFO","Tab Names","Long Desc",null,null,null,null,"Issue Count","Info %","Total Issue %"]
[null,null,"Short H1 Tags","Pages found with H1 tag shorter than 15 characters",null,null,null,null,5,{"$f":"I281/$I$381","v":0.625},{"$f":"IF($G$12<>0,I281/$G$12,0)","v":3.8461538461538464E-2}]
[null,null,"Short Meta Keywords","Pages found with meta keyword tag shorter than 80 characters",null,null,null,null,3,{"$f":"I282/$I$381","v":0.375},{"$f":"IF($G$12<>0,I282/$G$12,0)","v":2.3076923076923078E-2}]
[null,null,0,{"$error":"#N/A"},null,null,null,null,{"$error":"#N/A"},{"$f":"I283/$I$381","v":{"$error":"#N/A"}},{"$f":"IF($G$12<>0,I283/$G$12,0)","v":{"$error":"#N/A"}}]
[null,null,0,{"$error":"#N/A"},null,null,null,null,{"$error":"#N/A"},{"$error":"#N/A"},{"$error":"#N/A"}]
[null,null,0,{"$error":"#N/A"},null,null,null,null,{"$error":"#N/A"},{"$error":"#N/A"},{"$error":"#N/A"}]
[null,null,0,{"$error":"#N/A"},null,null,null,null,{"$error":"#N/A"},{"$error":"#N/A"},{"$error":"#N/A"}]
[null,null,0,{"$error":"#N/A"},null,null,null,null,{"$error":"#N/A"},{"$f":"I287/$I$381","v":{"$error":"#N/A"}},{"$f":"IF($G$12<>0,I287/$G$12,0)","v":{"$error":"#N/A"}}]
[null,null,0,{"$error":"#N/A"},null,null,null,null,{"$error":"#N/A"},{"$error":"#N/A"},{"$error":"#N/A"}]
[null,null,0,{"$error":"#N/A"},null,null,null,null,{"$error":"#N/A"},{"$error":"#N/A"},{"$error":"#N/A"}]
[null,null,0,{"$error":"#N/A"},null,null,null,null,{"$error":"#N/A"},{"$error":"#N/A"},{"$error":"#N/A"}]
[null,null,0,{"$error":"#N/A"},null,null,null,null,{"$error":"#N/A"},{"$error":"#N/A"},{"$error":"#N/A"}]
[null,null,0,{"$error":"#N/A"},null,null,null,null,{"$error":"#N/A"},{"$error":"#N/A"},{"$error":"#N/A"}]
[null,null,0,{"$error":"#N/A"},null,null,null,null,{"$error":"#N/A"},{"$error":"#N/A"},{"$error":"#N/A"}]
[null,null,0,{"$error":"#N/A"},null,null,null,null,{"$error":"#N/A"},{"$error":"#N/A"},{"$error":"#N/A"}]
[null,null,0,{"$error":"#N/A"},null,null,null,null,{"$error":"#N/A"},{"$error":"#N/A"},{"$error":"#N/A"}]
[null,null,0,{"$error":"#N/A"},null,null,null,null,{"$error":"#N/A"},{"$error":"#N/A"},{"$error":"#N/A"}]
[null,null,0,{"$error":"#N/A"},null,null,null,null,{"$error":"#N/A"},{"$error":"#N/A"},{"$error":"#N/A"}]
[null,null,0,{"$error":"#N/A"},null,null,null,null,{"$error":"#N/A"},{"$error":"#N/A"},{"$error":"#N/A"}]
[null,null,0,{"$error":"#N/A"},null,null,null,null,{"$error":"#N/A"},{"$error":"#N/A"},{"$error":"#N/A"}]
[null,null,0,{"$error":"#N/A"},null,null,null,null,{"$error":"#N/A"},{"$error":"#N/A"},{"$error":"#N/A"}]
[null,null,0,{"$error":"#N/A"},null,null,null,null,{"$error":"#N/A"},{"$error":"#N/A"},{"$error":"#N/A"}]
[null,null,0,{"$error":"#N/A"},null,null,null,null,{"$error":"#N/A"},{"$error":"#N/A"},{"$error":"#N/A"}]
[null,null,0,{"$error":"#N/A"},null,null,null,null,{"$error":"#N/A"},{"$error":"#N/A"},{"$error":"#N/A"}]
[null,null,0,{"$error":"#N/A"},null,null,null,null,{"$error":"#N/A"},{"$error":"#N/A"},{"$error":"#N/A"}]
[null,null,0,{"$error":"#N/A"},null,null,null,null,{"$error":"#N/A"},{"$error":"#N/A"},{"$error":"#N/A"}]
[null,null,0,{"$error":"#N/A"},null,null,null,null,{"$error":"#N/A"},{"$error":"#N/A"},{"$error":"#N/A"}]
[null,null,0,{"$error":"#N/A"},null,null,null,null,{"$error":"#N/A"},{"$error":"#N/A"},{"$error":"#N/A"}]
[null,null,0,{"$error":"#N/A"},null,null,null,null,{"$error":"#N/A"},{"$error":"#N/A"},{"$error":"#N/A"}]
[null,null,0,{"$error":"#N/A"},null,null,null,null,{"$error":"#N/A"},{"$error":"#N/A"},{"$error":"#N/A"}]
[null,null,0,{"$error":"#N/A"},null,null,null,null,{"$error":"#N/A"},{"$error":"#N/A"},{"$error":"#N/A"}]
[null,null,0,{"$error":"#N/A"},null,null,null,null,{"$error":"#N/A"},{"$error":"#N/A"},{"$error":"#N/A"}]
[null,null,0,{"$error":"#N/A"},null,null,null,null,{"$error":"#N/A"},{"$error":"#N/A"},{"$error":"#N/A"}]
[null,null,0,{"$error":"#N/A"},null,null,null,null,{"$error":"#N/A"},{"$error":"#N/A"},{"$error":"#N/A"}]
[null,null,0,{"$error":"#N/A"},null,null,null,null,{"$error":"#N/A"},{"$error":"#N/A"},{"$error":"#N/A"}]
[null,null,0,{"$error":"#N/A"},null,null,null,null,{"$error":"#N/A"},{"$error":"#N/A"},{"$error":"#N/A"}]
[null,null,0,{"$error":"#N/A"},null,null,null,null,{"$error":"#N/A"},{"$error":"#N/A"},{"$error":"#N/A"}]
[null,null,0,{"$error":"#N/A"},null,null,null,null,{"$error":"#N/A"},{"$error":"#N/A"},{"$error":"#N/A"}]
[null,null,0,{"$error":"#N/A"},null,null,null,null,{"$error":"#N/A"},{"$error":"#N/A"},{"$error":"#N/A"}]
[null,null,0,{"$error":"#N/A"},null,null,null,null,{"$error":"#N/A"},{"$error":"#N/A"},{"$error":"#N/A"}]
[null,null,0,{"$error":"#N/A"},null,null,null,null,{"$error":"#N/A"},{"$error":"#N/A"},{"$error":"#N/A"}]
[null,null,0,{"$error":"#N/A"},null,null,null,null,{"$error":"#N/A"},{"$error":"#N/A"},{"$error":"#N/A"}]
[null,null,0,{"$error":"#N/A"},null,null,null,null,{"$error":"#N/A"},{"$error":"#N/A"},{"$error":"#N/A"}]
[null,null,0,{"$error":"#N/A"},null,null,null,null,{"$error":"#N/A"},{"$error":"#N/A"},{"$error":"#N/A"}]
[null,null,0,{"$error":"#N/A"},null,null,null,null,{"$error":"#N/A"},{"$error":"#N/A"},{"$error":"#N/A"}]
[null,null,0,{"$error":"#N/A"},null,null,null,null,{"$error":"#N/A"},{"$error":"#N/A"},{"$error":"#N/A"}]
[null,null,0,{"$error":"#N/A"},null,null,null,null,{"$error":"#N/A"},{"$error":"#N/A"},{"$error":"#N/A"}]
[null,null,0,{"$error":"#N/A"},null,null,null,null,{"$error":"#N/A"},{"$error":"#N/A"},{"$error":"#N/A"}]
[null,null,0,{"$error":"#N/A"},null,null,null,null,{"$error":"#N/A"},{"$error":"#N/A"},{"$error":"#N/A"}]
[null,null,0,{"$error":"#N/A"},null,null,null,null,{"$error":"#N/A"},{"$error":"#N/A"},{"$error":"#N/A"}]
[null,null,0,{"$error":"#N/A"},null,null,null,null,{"$error":"#N/A"},{"$error":"#N/A"},{"$error":"#N/A"}]
[null,null,0,{"$error":"#N/A"},null,null,null,null,{"$error":"#N/A"},{"$error":"#N/A"},{"$error":"#N/A"}]
[null,null,0,{"$error":"#N/A"},null,null,null,null,{"$error":"#N/A"},{"$error":"#N/A"},{"$error":"#N/A"}]
[null,null,0,{"$error":"#N/A"},null,null,null,null,{"$error":"#N/A"},{"$error":"#N/A"},{"$error":"#N/A"}]
[null,null,0,{"$error":"#N/A"},null,null,null,null,{"$error":"#N/A"},{"$error":"#N/A"},{"$error":"#N/A"}]
[null,null,0,{"$error":"#N/A"},null,null,null,null,{"$error":"#N/A"},{"$error":"#N/A"},{"$error":"#N/A"}]
[null,null,0,{"$error":"#N/A"},null,null,null,null,{"$error":"#N/A"},{"$error":"#N/A"},{"$error":"#N/A"}]
[null,null,0,{"$error":"#N/A"},null,null,null,null,{"$error":"#N/A"},{"$error":"#N/A"},{"$error":"#N/A"}]
[null,null,0,{"$error":"#N/A"},null,null,null,null,{"$error":"#N/A"},{"$error":"#N/A"},{"$error":"#N/A"}]
[null,null,0,{"$error":"#N/A"},null,null,null,null,{"$error":"#N/A"},{"$error":"#N/A"},{"$error":"#N/A"}]
[null,null,0,{"$error":"#N/A"},null,null,null,null,{"$error":"#N/A"},{"$error":"#N/A"},{"$error":"#N/A"}]
[null,null,0,{"$error":"#N/A"},null,null,null,null,{"$error":"#N/A"},{"$error":"#N/A"},{"$error":"#N/A"}]
[null,null,0,{"$error":"#N/A"},null,null,null,null,{"$error":"#N/A"},{"$error":"#N/A"},{"$error":"#N/A"}]
[null,null,0,{"$error":"#N/A"},null,null,null,null,{"$error":"#N/A"},{"$error":"#N/A"},{"$error":"#N/A"}]
[null,null,0,{"$error":"#N/A"},null,null,null,null,{"$error":"#N/A"},{"$error":"#N/A"},{"$error":"#N/A"}]
[null,null,0,{"$error":"#N/A"},null,null,null,null,{"$error":"#N/A"},{"$error":"#N/A"},{"$error":"#N/A"}]
[null,null,0,{"$error":"#N/A"},null,null,null,null,{"$error":"#N/A"},{"$f":"I346/$I$381","v":{"$error":"#N/A"}},{"$f":"IF($G$12<>0,I346/$G$12,0)","v":{"$error":"#N/A"}}]
[null,null,0,{"$error":"#N/A"},null,null,null,null,{"$error":"#N/A"},{"$error":"#N/A"},{"$error":"#N/A"}]
[null,null,0,{"$error":"#N/A"},null,null,null,null,{"$error":"#N/A"},{"$error":"#N/A"},{"$error":"#N/A"}]
[null,null,0,{"$error":"#N/A"},null,null,null,null,{"$error":"#N/A"},{"$error":"#N/A"},{"$error":"#N/A"}]
[null,null,0,{"$error":"#N/A"},null,null,null,null,{"$error":"#N/A"},{"$error":"#N/A"},{"$error":"#N/A"}]
[null,null,0,{"$error":"#N/A"},null,null,null,null,{"$error":"#N/A"},{"$error":"#N/A"},{"$error":"#N/A"}]
[null,null,0,{"$error":"#N/A"},null,null,null,null,{"$error":"#N/A"},{"$error":"#N/A"},{"$error":"#N/A"}]
[null,null,0,{"$error":"#N/A"},null,null,null,null,{"$error":"#N/A"},{"$error":"#N/A"},{"$error":"#N/A"}]
[null,null,0,{"$error":"#N/A"},null,null,null,null,{"$error":"#N/A"},{"$error":"#N/A"},{"$error":"#N/A"}]
[null,null,0,{"$error":"#N/A"},null,null,null,null,{"$error":"#N/A"},{"$error":"#N/A"},{"$error":"#N/A"}]
[null,null,0,{"$error":"#N/A"},null,null,null,null,{"$error":"#N/A"},{"$error":"#N/A"},{"$error":"#N/A"}]
[null,null,0,{"$error":"#N/A"},null,null,null,null,{"$error":"#N/A"},{"$error":"#N/A"},{"$error":"#N/A"}]
[null,null,0,{"$error":"#N/A"},null,null,null,null,{"$error":"#N/A"},{"$error":"#N/A"},{"$error":"#N/A"}]
[null,null,0,{"$error":"#N/A"},null,null,null,null,{"$error":"#N/A"},{"$error":"#N/A"},{"$error":"#N/A"}]
[null,null,0,{"$error":"#N/A"},null,null,null,null,{"$error":"#N/A"},{"$error":"#N/A"},{"$error":"#N/A"}]
[null,null,0,{"$error":"#N/A"},null,null,null,null,{"$error":"#N/A"},{"$error":"#N/A"},{"$error":"#N/A"}]
[null,null,0,{"$error":"#N/A"},null,null,null,null,{"$error":"#N/A"},{"$error":"#N/A"},{"$error":"#N/A"}]
[null,null,0,{"$error":"#N/A"},null,null,null,null,{"$error":"#N/A"},{"$error":"#N/A"},{"$error":"#N/A"}]
[null,null,0,{"$error":"#N/A"},null,null,null,null,{"$error":"#N/A"},{"$error":"#N/A"},{"$error":"#N/A"}]
[null,null,0,{"$error":"#N/A"},null,null,null,null,{"$error":"#N/A"},{"$error":"#N/A"},{"$error":"#N/A"}]
[null,null,0,{"$error":"#N/A"},null,null,null,null,{"$error":"#N/A"},{"$error":"#N/A"},{"$error":"#N/A"}]
[null,null,0,{"$error":"#N/A"},null,null,null,null,{"$error":"#N/A"},{"$error":"#N/A"},{"$error":"#N/A"}]
[null,null,0,{"$error":"#N/A"},null,null,null,null,{"$error":"#N/A"},{"$error":"#N/A"},{"$error":"#N/A"}]
[null,null,0,{"$error":"#N/A"},null,null,null,null,{"$error":"#N/A"},{"$error":"#N/A"},{"$error":"#N/A"}]
[null,null,0,{"$error":"#N/A"},null,null,null,null,{"$error":"#N/A"},{"$error":"#N/A"},{"$error":"#N/A"}]
[null,null,0,{"$error":"#N/A"},null,null,null,null,{"$error":"#N/A"},{"$error":"#N/A"},{"$error":"#N/A"}]
[null,null,0,{"$error":"#N/A"},null,null,null,null,{"$error":"#N/A"},{"$error":"#N/A"},{"$error":"#N/A"}]
[null,null,0,{"$error":"#N/A"},null,null,null,null,{"$error":"#N/A"},{"$error":"#N/A"},{"$error":"#N/A"}]
[null,null,0,{"$error":"#N/A"},null,null,null,null,{"$error":"#N/A"},{"$error":"#N/A"},{"$error":"#N/A"}]
[null,null,0,{"$error":"#N/A"},null,null,null,null,{"$error":"#N/A"},{"$error":"#N/A"},{"$error":"#N/A"}]
[null,null,0,{"$error":"#N/A"},null,null,null,null,{"$error":"#N/A"},{"$error":"#N/A"},{"$error":"#N/A"}]
[null,null,0,{"$error":"#N/A"},null,null,null,null,{"$error":"#N/A"},{"$error":"#N/A"},{"$error":"#N/A"}]
[null,null,0,{"$error":"#N/A"},null,null,null,null,{"$error":"#N/A"},{"$error":"#N/A"},{"$error":"#N/A"}]
[null,null,0,{"$error":"#N/A"},null,null,null,null,{"$error":"#N/A"},{"$error":"#N/A"},{"$error":"#N/A"}]
[null,null,0,{"$error":"#N/A"},null,null,null,null,{"$error":"#N/A"},{"$error":"#N/A"},{"$error":"#N/A"}]
[null,null,null,null,null,null,null,null,{"$f":"SUM(I281:I282)","v":8},{"$f":"IFERROR(I381/$I$381,0)","v":1},{"$f":"IFERROR(IF($G$12<>0,I381/$G$12,0),0)","v":6.1538461538461542E-2}]

{"sheet":"Duplicate H1 Tags","index":1,"n_rows":27,"n_cols":3,"rows_kept":27,"cut":false,"hidden":false,"merged":[]}
[]
[]
[null,"Duplicate H1 Tags"]
[]
[null,"Pages found with duplicate H1 tags"]
[null,"Total Count: 18"]
[]
[null,"Issue Severity: Critical"]
[null,"URL","Duplicate"]
[null,"http://ec2-50-19-31-202.compute-1.amazonaws.com/lost/multipleh1.html","77aaaaaaaaaaaaaaaaaaaaaaaaaaaaaaaaaaaaaaaaaaaaaaaaaaaaaaaaaaaaaaaaaaaaaaaaaa--||TSA||--76aaaaaaaaaaaaaaaaaaaaaaaaaaaaaaaaaaaaaaaaaaaaaaaaaaaaaaaaaaaaaaaaaaaaaaaaa--||TSA||--75aaaaaaaaaaaaaaaaaaaaaaaaaaaaaaaaaaaaaaaaaaaaaaaaaaaaaaaaaaaaaaaaaaaaaaaa--||TSA||--15aaaaaaaaaaaaa--||TSA||--14aaaaaaaaaaaa"]
[null,"http://ec2-50-19-31-202.compute-1.amazonaws.com/lost/multipleh1titlemk.html","77aaaaaaaaaaaaaaaaaaaaaaaaaaaaaaaaaaaaaaaaaaaaaaaaaaaaaaaaaaaaaaaaaaaaaaaaaa--||TSA||--76aaaaaaaaaaaaaaaaaaaaaaaaaaaaaaaaaaaaaaaaaaaaaaaaaaaaaaaaaaaaaaaaaaaaaaaaa--||TSA||--75aaaaaaaaaaaaaaaaaaaaaaaaaaaaaaaaaaaaaaaaaaaaaaaaaaaaaaaaaaaaaaaaaaaaaaaa--||TSA||--15aaaaaaaaaaaaa--||TSA||--14aaaaaaaaaaaa"]
[null,"http://ec2-50-19-31-202.compute-1.amazonaws.com/lost/multipleh1titlemkmd.html","77aaaaaaaaaaaaaaaaaaaaaaaaaaaaaaaaaaaaaaaaaaaaaaaaaaaaaaaaaaaaaaaaaaaaaaaaaa--||TSA||--76aaaaaaaaaaaaaaaaaaaaaaaaaaaaaaaaaaaaaaaaaaaaaaaaaaaaaaaaaaaaaaaaaaaaaaaaa--||TSA||--75aaaaaaaaaaaaaaaaaaaaaaaaaaaaaaaaaaaaaaaaaaaaaaaaaaaaaaaaaaaaaaaaaaaaaaaa--||TSA||--15aaaaaaaaaaaaa--||TSA||--14aaaaaaaaaaaa"]
[null,"http://ec2-50-19-31-202.compute-1.amazonaws.com/lost/Copyofmultipleh1titlemkmd.html","77aaaaaaaaaaaaaaaaaaaaaaaaaaaaaaaaaaaaaaaaaaaaaaaaaaaaaaaaaaaaaaaaaaaaaaaaaa--||TSA||--76aaaaaaaaaaaaaaaaaaaaaaaaaaaaaaaaaaaaaaaaaaaaaaaaaaaaaaaaaaaaaaaaaaaaaaaaa--||TSA||--75aaaaaaaaaaaaaaaaaaaaaaaaaaaaaaaaaaaaaaaaaaaaaaaaaaaaaaaaaaaaaaaaaaaaaaaa--||TSA||--15aaaaaaaaaaaaa--||TSA||--14aaaaaaaaaaaa"]
[null,"http://ec2-50-19-31-202.compute-1.amazonaws.com/lost/multipleh1title.html","77aaaaaaaaaaaaaaaaaaaaaaaaaaaaaaaaaaaaaaaaaaaaaaaaaaaaaaaaaaaaaaaaaaaaaaaaaa--||TSA||--76aaaaaaaaaaaaaaaaaaaaaaaaaaaaaaaaaaaaaaaaaaaaaaaaaaaaaaaaaaaaaaaaaaaaaaaaa--||TSA||--75aaaaaaaaaaaaaaaaaaaaaaaaaaaaaaaaaaaaaaaaaaaaaaaaaaaaaaaaaaaaaaaaaaaaaaaa--||TSA||--15aaaaaaaaaaaaa--||TSA||--14aaaaaaaaaaaa"]
[null,"http://ec2-50-19-31-202.compute-1.amazonaws.com/lost/shorth1.html","14aaaaaaaaaaaa"]
[null,"http://ec2-50-19-31-202.compute-1.amazonaws.com/lost/shorth1titlemkmd.html","14aaaaaaaaaaaa"]
[null,"http://ec2-50-19-31-202.compute-1.amazonaws.com/lost/Copyofshorth1titlemkmd.html","14aaaaaaaaaaaa"]
[null,"http://ec2-50-19-31-202.compute-1.amazonaws.com/lost/shorth1titlemk.html","14aaaaaaaaaaaa"]
[null,"http://ec2-50-19-31-202.compute-1.amazonaws.com/lost/shorth1title.html","14aaaaaaaaaaaa"]
[null,"http://ec2-50-19-31-202.compute-1.amazonaws.com/lost/","This is a test Page 1"]
[null,"http://ec2-50-19-31-202.compute-1.amazonaws.com/lost/index.html","This is a test Page 1"]
[null,"http://ec2-50-19-31-202.compute-1.amazonaws.com/lost/page4.html","This is a test Page 4 CSS"]
[null,"http://ec2-50-19-31-202.compute-1.amazonaws.com/lost/page4.html?a=1&b=2&c=3&d=4&e=5&f=6&g=7","This is a test Page 4 CSS"]
[null,"http://ec2-50-19-31-202.compute-1.amazonaws.com/lost/longh1titlemkmd.html","76aaaaaaaaaaaaaaaaaaaaaaaaaaaaaaaaaaaaaaaaaaaaaaaaaaaaaaaaaaaaaaaaaaaaaaaaa"]
[null,"http://ec2-50-19-31-202.compute-1.amazonaws.com/lost/longh1titlemk.html","76aaaaaaaaaaaaaaaaaaaaaaaaaaaaaaaaaaaaaaaaaaaaaaaaaaaaaaaaaaaaaaaaaaaaaaaaa"]
[null,"http://ec2-50-19-31-202.compute-1.amazonaws.com/lost/longh1title.html","76aaaaaaaaaaaaaaaaaaaaaaaaaaaaaaaaaaaaaaaaaaaaaaaaaaaaaaaaaaaaaaaaaaaaaaaaa"]
[null,"http://ec2-50-19-31-202.compute-1.amazonaws.com/lost/longh1.html","76aaaaaaaaaaaaaaaaaaaaaaaaaaaaaaaaaaaaaaaaaaaaaaaaaaaaaaaaaaaaaaaaaaaaaaaaa"]

{"sheet":"Duplicate Title Tags","index":2,"n_rows":27,"n_cols":3,"rows_kept":27,"cut":false,"hidden":false,"merged":[]}
[]
[]
[null,"Duplicate Title Tags"]
[]
[null,"Pages found with duplicate title tags"]
[null,"Total Count: 18"]
[]
[null,"Issue Severity: Critical"]
[null,"URL","Duplicate"]
[null,"http://ec2-50-19-31-202.compute-1.amazonaws.com/lost/Copyofmultipleh1titlemkmd.html","151asadafaaaaaaaaaaaaaaaaaaaaaaaaaaaaaaaaaaaaaaaaaaaaaaaaaaaaaaaaaaaaaaaaaaaaaaaaaaaaaaaaaaaaaaaaaaaaaaaaaaaaaaaaaaaaaaaaaasasaaaaaaaaaaaaaaaaaaadsaaaa--||TSA||--150sadafaaaaaaaaaaaaaaaaaaaaaaaaaaaaaaaaaaaaaaaaaaaaaaaaaaaaaaaaaaaaaaaaaaaaaaaaaaaaaaaaaaaaaaaaaaaaaaaaaaaaaaaaaaaaaaaaaasasaaaaaaaaaaaaaaaaaaadsaaaa--||TSA||--149sadafaaaaaaaaaaaaaaaaaaaaaaaaaaaaaaaaaaaaaaaaaaaaaaaaaaaaaaaaaaaaaaaaaaaaaaaaaaaaaaaaaaaaaaaaaaaaaaaaaaaaaaaaaaaaaaaaaasasaaaaaaaaaaaaaaaaaaadsaaa--||TSA||--20aaaaaaaaaaaaaaaaaa--||TSA||--19aaaaaaaaaaaaaaaaa"]
[null,"http://ec2-50-19-31-202.compute-1.amazonaws.com/lost/multipleh1title.html","151asadafaaaaaaaaaaaaaaaaaaaaaaaaaaaaaaaaaaaaaaaaaaaaaaaaaaaaaaaaaaaaaaaaaaaaaaaaaaaaaaaaaaaaaaaaaaaaaaaaaaaaaaaaaaaaaaaaaasasaaaaaaaaaaaaaaaaaaadsaaaa--||TSA||--150sadafaaaaaaaaaaaaaaaaaaaaaaaaaaaaaaaaaaaaaaaaaaaaaaaaaaaaaaaaaaaaaaaaaaaaaaaaaaaaaaaaaaaaaaaaaaaaaaaaaaaaaaaaaaaaaaaaaasasaaaaaaaaaaaaaaaaaaadsaaaa--||TSA||--149sadafaaaaaaaaaaaaaaaaaaaaaaaaaaaaaaaaaaaaaaaaaaaaaaaaaaaaaaaaaaaaaaaaaaaaaaaaaaaaaaaaaaaaaaaaaaaaaaaaaaaaaaaaaaaaaaaaaasasaaaaaaaaaaaaaaaaaaadsaaa--||TSA||--20aaaaaaaaaaaaaaaaaa--||TSA||--19aaaaaaaaaaaaaaaaa"]
[null,"http://ec2-50-19-31-202.compute-1.amazonaws.com/lost/multipleh1titlemkmd.html","151asadafaaaaaaaaaaaaaaaaaaaaaaaaaaaaaaaaaaaaaaaaaaaaaaaaaaaaaaaaaaaaaaaaaaaaaaaaaaaaaaaaaaaaaaaaaaaaaaaaaaaaaaaaaaaaaaaaaasasaaaaaaaaaaaaaaaaaaadsaaaa--||TSA||--150sadafaaaaaaaaaaaaaaaaaaaaaaaaaaaaaaaaaaaaaaaaaaaaaaaaaaaaaaaaaaaaaaaaaaaaaaaaaaaaaaaaaaaaaaaaaaaaaaaaaaaaaaaaaaaaaaaaaasasaaaaaaaaaaaaaaaaaaadsaaaa--||TSA||--149sadafaaaaaaaaaaaaaaaaaaaaaaaaaaaaaaaaaaaaaaaaaaaaaaaaaaaaaaaaaaaaaaaaaaaaaaaaaaaaaaaaaaaaaaaaaaaaaaaaaaaaaaaaaaaaaaaaaasasaaaaaaaaaaaaaaaaaaadsaaa--||TSA||--20aaaaaaaaaaaaaaaaaa--||TSA||--19aaaaaaaaaaaaaaaaa"]
[null,"http://ec2-50-19-31-202.compute-1.amazonaws.com/lost/multipleh1titlemk.html","151asadafaaaaaaaaaaaaaaaaaaaaaaaaaaaaaaaaaaaaaaaaaaaaaaaaaaaaaaaaaaaaaaaaaaaaaaaaaaaaaaaaaaaaaaaaaaaaaaaaaaaaaaaaaaaaaaaaaasasaaaaaaaaaaaaaaaaaaadsaaaa--||TSA||--150sadafaaaaaaaaaaaaaaaaaaaaaaaaaaaaaaaaaaaaaaaaaaaaaaaaaaaaaaaaaaaaaaaaaaaaaaaaaaaaaaaaaaaaaaaaaaaaaaaaaaaaaaaaaaaaaaaaaasasaaaaaaaaaaaaaaaaaaadsaaaa--||TSA||--149sadafaaaaaaaaaaaaaaaaaaaaaaaaaaaaaaaaaaaaaaaaaaaaaaaaaaaaaaaaaaaaaaaaaaaaaaaaaaaaaaaaaaaaaaaaaaaaaaaaaaaaaaaaaaaaaaaaaasasaaaaaaaaaaaaaaaaaaadsaaa--||TSA||--20aaaaaaaaaaaaaaaaaa--||TSA||--19aaaaaaaaaaaaaaaaa"]
[null,"http://ec2-50-19-31-202.compute-1.amazonaws.com/lost/shorth1.html","Page 1 Yahoo"]
[null,"http://ec2-50-19-31-202.compute-1.amazonaws.com/lost/","Page 1 Yahoo"]
[null,"http://ec2-50-19-31-202.compute-1.amazonaws.com/lost/index.html","Page 1 Yahoo"]
[null,"http://ec2-50-19-31-202.compute-1.amazonaws.com/lost/longh1.html","Page 1 Yahoo"]
[null,"http://ec2-50-19-31-202.compute-1.amazonaws.com/lost/multipleh1.html","Page 1 Yahoo"]
[null,"http://ec2-50-19-31-202.compute-1.amazonaws.com/lost/page4.html?a=1&b=2&c=3&d=4&e=5&f=6&g=7","Page 4 yahoo"]
[null,"http://ec2-50-19-31-202.compute-1.amazonaws.com/lost/page4.html","Page 4 yahoo"]
[null,"http://ec2-50-19-31-202.compute-1.amazonaws.com/lost/shorth1titlemkmd.html","19aaaaaaaaaaaaaaaaa"]
[null,"http://ec2-50-19-31-202.compute-1.amazonaws.com/lost/Copyofshorth1titlemkmd.html","19aaaaaaaaaaaaaaaaa"]
[null,"http://ec2-50-19-31-202.compute-1.amazonaws.com/lost/shorth1title.html","19aaaaaaaaaaaaaaaaa"]
[null,"http://ec2-50-19-31-202.compute-1.amazonaws.com/lost/shorth1titlemk.html","19aaaaaaaaaaaaaaaaa"]
[null,"http://ec2-50-19-31-202.compute-1.amazonaws.com/lost/longh1titlemkmd.html","151asadafaaaaaaaaaaaaaaaaaaaaaaaaaaaaaaaaaaaaaaaaaaaaaaaaaaaaaaaaaaaaaaaaaaaaaaaaaaaaaaaaaaaaaaaaaaaaaaaaaaaaaaaaaaaaaaaaaasasaaaaaaaaaaaaaaaaaaadsaaaa"]
[null,"http://ec2-50-19-31-202.compute-1.amazonaws.com/lost/longh1titlemk.html","151asadafaaaaaaaaaaaaaaaaaaaaaaaaaaaaaaaaaaaaaaaaaaaaaaaaaaaaaaaaaaaaaaaaaaaaaaaaaaaaaaaaaaaaaaaaaaaaaaaaaaaaaaaaaaaaaaaaaasasaaaaaaaaaaaaaaaaaaadsaaaa"]
[null,"http://ec2-50-19-31-202.compute-1.amazonaws.com/lost/longh1title.html","151asadafaaaaaaaaaaaaaaaaaaaaaaaaaaaaaaaaaaaaaaaaaaaaaaaaaaaaaaaaaaaaaaaaaaaaaaaaaaaaaaaaaaaaaaaaaaaaaaaaaaaaaaaaaaaaaaaaaasasaaaaaaaaaaaaaaaaaaadsaaaa"]

{"sheet":"Missing Meta Description","index":3,"n_rows":26,"n_cols":3,"rows_kept":26,"cut":false,"hidden":false,"merged":[]}
[]
[]
[null,"Missing Meta Description"]
[]
[null,"Pages found missing a meta description tag"]
[null,"Total Count: 17"]
[]
[null,"Issue Severity: Critical"]
[null,"URL","Meta Description Tag"]
[null,"http://ec2-50-19-31-202.compute-1.amazonaws.com/lost/","Missing"]
[null,"http://ec2-50-19-31-202.compute-1.amazonaws.com/lost/gen500.asp","Missing"]
[null,"http://ec2-50-19-31-202.compute-1.amazonaws.com/lost/index.html","Missing"]
[null,"http://ec2-50-19-31-202.compute-1.amazonaws.com/lost/longh1.html","Missing"]
[null,"http://ec2-50-19-31-202.compute-1.amazonaws.com/lost/longh1title.html","Missing"]
[null,"http://ec2-50-19-31-202.compute-1.amazonaws.com/lost/longh1titlemk.html","Missing"]
[null,"http://ec2-50-19-31-202.compute-1.amazonaws.com/lost/multipleh1.html","Missing"]
[null,"http://ec2-50-19-31-202.compute-1.amazonaws.com/lost/multipleh1title.html","Missing"]
[null,"http://ec2-50-19-31-202.compute-1.amazonaws.com/lost/multipleh1titlemk.html","Missing"]
[null,"http://ec2-50-19-31-202.compute-1.amazonaws.com/lost/page1.html?a=1&b=2","Missing"]
[null,"http://ec2-50-19-31-202.compute-1.amazonaws.com/lost/page2.html","Missing"]
[null,"http://ec2-50-19-31-202.compute-1.amazonaws.com/lost/page4.html","Missing"]
[null,"http://ec2-50-19-31-202.compute-1.amazonaws.com/lost/page4.html?a=1&b=2&c=3&d=4&e=5&f=6&g=7","Missing"]
[null,"http://ec2-50-19-31-202.compute-1.amazonaws.com/lost/page5.html","Missing"]
[null,"http://ec2-50-19-31-202.compute-1.amazonaws.com/lost/shorth1.html","Missing"]
[null,"http://ec2-50-19-31-202.compute-1.amazonaws.com/lost/shorth1title.html","Missing"]
[null,"http://ec2-50-19-31-202.compute-1.amazonaws.com/lost/shorth1titlemk.html","Missing"]

{"sheet":"Multiple H1 Tags","index":4,"n_rows":14,"n_cols":3,"rows_kept":14,"cut":false,"hidden":false,"merged":[]}
[]
[]
[null,"Multiple H1 Tags"]
[]
[null,"Pages found with multiple H1 tags"]
[null,"Total Count: 5"]
[]
[null,"Issue Severity: Critical"]
[null,"URL","Count"]
[null,"http://ec2-50-19-31-202.compute-1.amazonaws.com/lost/Copyofmultipleh1titlemkmd.html",5]
[null,"http://ec2-50-19-31-202.compute-1.amazonaws.com/lost/multipleh1.html",5]
[null,"http://ec2-50-19-31-202.compute-1.amazonaws.com/lost/multipleh1title.html",5]
[null,"http://ec2-50-19-31-202.compute-1.amazonaws.com/lost/multipleh1titlemk.html",5]
[null,"http://ec2-50-19-31-202.compute-1.amazonaws.com/lost/multipleh1titlemkmd.html",5]

{"sheet":"Multiple Title Tags","index":5,"n_rows":13,"n_cols":3,"rows_kept":13,"cut":false,"hidden":false,"merged":[]}
[]
[]
[null,"Multiple Title Tags"]
[]
[null,"Pages found with multiple title tags"]
[null,"Total Count: 4"]
[]
[null,"Issue Severity: Critical"]
[null,"URL","Count"]
[null,"http://ec2-50-19-31-202.compute-1.amazonaws.com/lost/Copyofmultipleh1titlemkmd.html",5]
[null,"http://ec2-50-19-31-202.compute-1.amazonaws.com/lost/multipleh1title.html",5]
[null,"http://ec2-50-19-31-202.compute-1.amazonaws.com/lost/multipleh1titlemk.html",5]
[null,"http://ec2-50-19-31-202.compute-1.amazonaws.com/lost/multipleh1titlemkmd.html",5]

{"sheet":"Missing Title Tags","index":6,"n_rows":12,"n_cols":3,"rows_kept":12,"cut":false,"hidden":false,"merged":[]}
[]
[]
[null,"Missing Title Tags"]
[]
[null,"Pages found missing a title tag"]
[null,"Total Count: 3"]
[]
[null,"Issue Severity: Critical"]
[null,"URL","Title Tag"]
[null,"http://ec2-50-19-31-202.compute-1.amazonaws.com/lost/gen500.asp","Missing"]
[null,"http://ec2-50-19-31-202.compute-1.amazonaws.com/lost/page1.html?a=1&b=2","Missing"]
[null,"http://ec2-50-19-31-202.compute-1.amazonaws.com/lost/page5.html","Missing"]

{"sheet":"Missing H1 Tag","index":7,"n_rows":12,"n_cols":3,"rows_kept":12,"cut":false,"hidden":false,"merged":[]}
[]
[]
[null,"Missing H1 Tag"]
[]
[null,"Pages found missing an H1 tag"]
[null,"Total Count: 3"]
[]
[null,"Issue Severity: Critical"]
[null,"URL","H1 Tag"]
[null,"http://ec2-50-19-31-202.compute-1.amazonaws.com/lost/gen500.asp","Missing"]
[null,"http://ec2-50-19-31-202.compute-1.amazonaws.com/lost/page1.html?a=1&b=2","Missing"]
[null,"http://ec2-50-19-31-202.compute-1.amazonaws.com/lost/page5.html","Missing"]

{"sheet":"Long Title Tags","index":8,"n_rows":12,"n_cols":4,"rows_kept":12,"cut":false,"hidden":false,"merged":[]}
[]
[]
[null,"Long Title Tags"]
[]
[null,"Pages found with title tags longer than 150 characters"]
[null,"Total Count: 3"]
[]
[null,"Issue Severity: Critical"]
[null,"URL","Title Tags","Character Count"]
[null,"http://ec2-50-19-31-202.compute-1.amazonaws.com/lost/longh1title.html","151asadafaaaaaaaaaaaaaaaaaaaaaaaaaaaaaaaaaaaaaaaaaaaaaaaaaaaaaaaaaaaaaaaaaaaaaaaaaaaaaaaaaaaaaaaaaaaaaaaaaaaaaaaaaaaaaaaaaasasaaaaaaaaaaaaaaaaaaadsaaaa",151]
[null,"http://ec2-50-19-31-202.compute-1.amazonaws.com/lost/longh1titlemk.html","151asadafaaaaaaaaaaaaaaaaaaaaaaaaaaaaaaaaaaaaaaaaaaaaaaaaaaaaaaaaaaaaaaaaaaaaaaaaaaaaaaaaaaaaaaaaaaaaaaaaaaaaaaaaaaaaaaaaaasasaaaaaaaaaaaaaaaaaaadsaaaa",151]
[null,"http://ec2-50-19-31-202.compute-1.amazonaws.com/lost/longh1titlemkmd.html","151asadafaaaaaaaaaaaaaaaaaaaaaaaaaaaaaaaaaaaaaaaaaaaaaaaaaaaaaaaaaaaaaaaaaaaaaaaaaaaaaaaaaaaaaaaaaaaaaaaaaaaaaaaaaaaaaaaaaasasaaaaaaaaaaaaaaaaaaadsaaaa",151]

{"sheet":"404s","index":9,"n_rows":12,"n_cols":3,"rows_kept":12,"cut":false,"hidden":false,"merged":[]}
[]
[]
[null,"404s"]
[]
[null,"Page Error found - Page Not Found - 404 Response Code"]
[null,"Total Count: 3"]
[]
[null,"Issue Severity: Critical"]
[null,"URL","Response Code"]
[null,"http://ec2-50-19-31-202.compute-1.amazonaws.com/lost/gen500.asp",404]
[null,"http://ec2-50-19-31-202.compute-1.amazonaws.com/lost/page1.html?a=1&b=2",404]
[null,"http://ec2-50-19-31-202.compute-1.amazonaws.com/lost/page5.html",404]

{"sheet":"Multiple Meta Description","index":10,"n_rows":11,"n_cols":3,"rows_kept":11,"cut":false,"hidden":false,"merged":[]}
[]
[]
[null,"Multiple Meta Description"]
[]
[null,"Pages found with multiple meta description tags"]
[null,"Total Count: 2"]
[]
[null,"Issue Severity: Critical"]
[null,"URL","Count"]
[null,"http://ec2-50-19-31-202.compute-1.amazonaws.com/lost/Copyofmultipleh1titlemkmd.html",4]
[null,"http://ec2-50-19-31-202.compute-1.amazonaws.com/lost/multipleh1titlemkmd.html",4]

{"sheet":"Short Meta Descriptions","index":11,"n_rows":11,"n_cols":4,"rows_kept":11,"cut":false,"hidden":false,"merged":[]}
[]
[]
[null,"Short Meta Descriptions"]
[]
[null,"Pages found with meta description tag shorter than 125 characters"]
[null,"Total Count: 2"]
[]
[null,"Issue Severity: Critical"]
[null,"URL","Meta Description","Character Count"]
[null,"http://ec2-50-19-31-202.compute-1.amazonaws.com/lost/Copyofshorth1titlemkmd.html","123sdaaaaaaaaaaaaaaaaaaaaaaaaaaaaaaaaaaaaaaaaaaaaaaaaaaaaaaaaaaaaaaaaaaaaaaaaaaaaaaaaaaaaaaaaaaaaaaaaaaaaaaaaaaaaaaaaaaaaaa",123]
[null,"http://ec2-50-19-31-202.compute-1.amazonaws.com/lost/shorth1titlemkmd.html","100asdaaaaaaaaaaaaaaaaaaaaaaaaaaaaaaaaaaaaaaaaaaaaaaaaaaaaaaaaaaaaaaaaaaaaaaaaaaaaaaaaaaaaaaaaaaaaaa",100]

{"sheet":"Duplicate Meta Description","index":12,"n_rows":11,"n_cols":3,"rows_kept":11,"cut":false,"hidden":false,"merged":[]}
[]
[]
[null,"Duplicate Meta Description"]
[]
[null,"Pages found with duplicate meta description tags"]
[null,"Total Count: 2"]
[]
[null,"Issue Severity: Critical"]
[null,"URL","Duplicate"]
[null,"http://ec2-50-19-31-202.compute-1.amazonaws.com/lost/multipleh1titlemkmd.html","401asdfasfaaaaaaaaaaaaaaaaaaaaaaaaaaaaaaaaaaaaaaaaaaaaaaaaaaaaaaaaaaaaaaaaaaaaaaaaaaaaaaaaaaaaaaaaaaaaaaaaaaaaaaaaaaaaaaaaaaaaaaaaaaaaaaaaaaaaaaaaaaaaaaaaaaaaaaaaaaaaaaaaaaaaaaaaaaaaaaaaaaaaaaaaaaaaaaaaaaaaaaaaaaaaaaaaaaaaaaaaaaaaaaaaaaaaaaaaaaaaaaaaaaaaaaaaaaaaaaaaaaaaaaaaaaaaaaaaaaaaaaaaaaaaaaaaaaaaaaaaaaaaaaaaaaaaaaaaaaaaaaaaaaaaaaaaaaaaaaaaaaaaaaaaaaaaaaaaaaaaaaaaaaaaaaaaaaaaaaaaaaaaaaaaaaaaaaa--||TSA||--400asdfasfaaaaaaaaaaaaaaaaaaaaaaaaaaaaaaaaaaaaaaaaaaaaaaaaaaaaaaaaaaaaaaaaaaaaaaaaaaaaaaaaaaaaaaaaaaaaaaaaaaaaaaaaaaaaaaaaaaaaaaaaaaaaaaaaaaaaaaaaaaaaaaaaaaaaaaaaaaaaaaaaaaaaaaaaaaaaaaaaaaaaaaaaaaaaaaaaaaaaaaaaaaaaaaaaaaaaaaaaaaaaaaaaaaaaaaaaaaaaaaaaaaaaaaaaaaaaaaaaaaaaaaaaaaaaaaaaaaaaaaaaaaaaaaaaaaaaaaaaaaaaaaaaaaaaaaaaaaaaaaaaaaaaaaaaaaaaaaaaaaaaaaaaaaaaaaaaaaaaaaaaaaaaaaaaaaaaaaaaaaaaaaaaaaaaaa--||TSA||--125asdaaaaaaaaaaaaaaaaaaaaaaaaaaaaaaaaaaaaaaaaaaaaaaaaaaaaaaaaaaaaaaaaaaaaaaaaaaaaaaaaaaaaaaaaaaaaaaaaaaaaaaaaaaaaaaaaaaaaaaa--||TSA||--124asdaaaaaaaaaaaaaaaaaaaaaaaaaaaaaaaaaaaaaaaaaaaaaaaaaaaaaaaaaaaaaaaaaaaaaaaaaaaaaaaaaaaaaaaaaaaaaaaaaaaaaaaaaaaaaaaaaaaaaa"]
[null,"http://ec2-50-19-31-202.compute-1.amazonaws.com/lost/Copyofmultipleh1titlemkmd.html","401asdfasfaaaaaaaaaaaaaaaaaaaaaaaaaaaaaaaaaaaaaaaaaaaaaaaaaaaaaaaaaaaaaaaaaaaaaaaaaaaaaaaaaaaaaaaaaaaaaaaaaaaaaaaaaaaaaaaaaaaaaaaaaaaaaaaaaaaaaaaaaaaaaaaaaaaaaaaaaaaaaaaaaaaaaaaaaaaaaaaaaaaaaaaaaaaaaaaaaaaaaaaaaaaaaaaaaaaaaaaaaaaaaaaaaaaaaaaaaaaaaaaaaaaaaaaaaaaaaaaaaaaaaaaaaaaaaaaaaaaaaaaaaaaaaaaaaaaaaaaaaaaaaaaaaaaaaaaaaaaaaaaaaaaaaaaaaaaaaaaaaaaaaaaaaaaaaaaaaaaaaaaaaaaaaaaaaaaaaaaaaaaaaaaaaaaaaaa--||TSA||--400asdfasfaaaaaaaaaaaaaaaaaaaaaaaaaaaaaaaaaaaaaaaaaaaaaaaaaaaaaaaaaaaaaaaaaaaaaaaaaaaaaaaaaaaaaaaaaaaaaaaaaaaaaaaaaaaaaaaaaaaaaaaaaaaaaaaaaaaaaaaaaaaaaaaaaaaaaaaaaaaaaaaaaaaaaaaaaaaaaaaaaaaaaaaaaaaaaaaaaaaaaaaaaaaaaaaaaaaaaaaaaaaaaaaaaaaaaaaaaaaaaaaaaaaaaaaaaaaaaaaaaaaaaaaaaaaaaaaaaaaaaaaaaaaaaaaaaaaaaaaaaaaaaaaaaaaaaaaaaaaaaaaaaaaaaaaaaaaaaaaaaaaaaaaaaaaaaaaaaaaaaaaaaaaaaaaaaaaaaaaaaaaaaaaaaaaaaa--||TSA||--125asdaaaaaaaaaaaaaaaaaaaaaaaaaaaaaaaaaaaaaaaaaaaaaaaaaaaaaaaaaaaaaaaaaaaaaaaaaaaaaaaaaaaaaaaaaaaaaaaaaaaaaaaaaaaaaaaaaaaaaaa--||TSA||--124asdaaaaaaaaaaaaaaaaaaaaaaaaaaaaaaaaaaaaaaaaaaaaaaaaaaaaaaaaaaaaaaaaaaaaaaaaaaaaaaaaaaaaaaaaaaaaaaaaaaaaaaaaaaaaaaaaaaaaaa"]

{"sheet":"URL Appended Parameters","index":13,"n_rows":11,"n_cols":3,"rows_kept":11,"cut":false,"hidden":false,"merged":[]}
[]
[]
[null,"Appended Parameters"]
[]
[null,"URLs found with appended parameters"]
[null,"Total Count: 2"]
[]
[null,"Issue Severity: Critical"]
[null,"URL","Appended Parameter Count"]
[null,"http://ec2-50-19-31-202.compute-1.amazonaws.com/lost/page1.html?a=1&b=2",2]
[null,"http://ec2-50-19-31-202.compute-1.amazonaws.com/lost/page4.html?a=1&b=2&c=3&d=4&e=5&f=6&g=7",7]

{"sheet":"Long Meta Descriptions","index":14,"n_rows":10,"n_cols":4,"rows_kept":10,"cut":false,"hidden":false,"merged":[]}
[]
[]
[null,"Long Meta Descriptions"]
[]
[null,"Pages found with meta descriptions longer than 400 characters"]
[null,"Total Count: 1"]
[]
[null,"Issue Severity: Critical"]
[null,"URL","Meta Descriptions","Character Count"]
[null,"http://ec2-50-19-31-202.compute-1.amazonaws.com/lost/longh1titlemkmd.html","401asdfasfaaaaaaaaaaaaaaaaaaaaaaaaaaaaaaaaaaaaaaaaaaaaaaaaaaaaaaaaaaaaaaaaaaaaaaaaaaaaaaaaaaaaaaaaaaaaaaaaaaaaaaaaaaaaaaaaaaaaaaaaaaaaaaaaaaaaaaaaaaaaaaaaaaaaaaaaaaaaaaaaaaaaaaaaaaaaaaaaaaaaaaaaaaaaaaaaaaaaaaaaaaaaaaaaaaaaaaaaaaaaaaaaaaaaaaaaaaaaaaaaaaaaaaaaaaaaaaaaaaaaaaaaaaaaaaaaaaaaaaaaaaaaaaaaaaaaaaaaaaaaaaaaaaaaaaaaaaaaaaaaaaaaaaaaaaaaaaaaaaaaaaaaaaaaaaaaaaaaaaaaaaaaaaaaaaaaaaaaaaaaaaaaaaaaaaa",401]

{"sheet":"Missing Meta Keywords","index":15,"n_rows":23,"n_cols":3,"rows_kept":23,"cut":false,"hidden":false,"merged":[]}
[]
[]
[null,"Missing Meta Keywords"]
[]
[null,"Pages found missing a meta keyword tag"]
[null,"Total Count: 14"]
[]
[null,"Issue Severity: Warning"]
[null,"URL","Meta Keywords Tag"]
[null,"http://ec2-50-19-31-202.compute-1.amazonaws.com/lost/","Missing"]
[null,"http://ec2-50-19-31-202.compute-1.amazonaws.com/lost/gen500.asp","Missing"]
[null,"http://ec2-50-19-31-202.compute-1.amazonaws.com/lost/index.html","Missing"]
[null,"http://ec2-50-19-31-202.compute-1.amazonaws.com/lost/longh1.html","Missing"]
[null,"http://ec2-50-19-31-202.compute-1.amazonaws.com/lost/longh1title.html","Missing"]
[null,"http://ec2-50-19-31-202.compute-1.amazonaws.com/lost/multipleh1.html","Missing"]
[null,"http://ec2-50-19-31-202.compute-1.amazonaws.com/lost/multipleh1title.html","Missing"]
[null,"http://ec2-50-19-31-202.compute-1.amazonaws.com/lost/page1.html?a=1&b=2","Missing"]
[null,"http://ec2-50-19-31-202.compute-1.amazonaws.com/lost/page2.html","Missing"]
[null,"http://ec2-50-19-31-202.compute-1.amazonaws.com/lost/page4.html","Missing"]
[null,"http://ec2-50-19-31-202.compute-1.amazonaws.com/lost/page4.html?a=1&b=2&c=3&d=4&e=5&f=6&g=7","Missing"]
[null,"http://ec2-50-19-31-202.compute-1.amazonaws.com/lost/page5.html","Missing"]
[null,"http://ec2-50-19-31-202.compute-1.amazonaws.com/lost/shorth1.html","Missing"]
[null,"http://ec2-50-19-31-202.compute-1.amazonaws.com/lost/shorth1title.html","Missing"]

{"sheet":"Short Title Tags","index":16,"n_rows":21,"n_cols":4,"rows_kept":21,"cut":false,"hidden":false,"merged":[]}
[]
[]
[null,"Short Title Tags"]
[]
[null,"Pages found with title tag shorter than 20 characters"]
[null,"Total Count: 12"]
[]
[null,"Issue Severity: Warning"]
[null,"URL","Title Tags","Character Count"]
[null,"http://ec2-50-19-31-202.compute-1.amazonaws.com/lost/","Page 1 Yahoo",12]
[null,"http://ec2-50-19-31-202.compute-1.amazonaws.com/lost/Copyofshorth1titlemkmd.html","19aaaaaaaaaaaaaaaaa",19]
[null,"http://ec2-50-19-31-202.compute-1.amazonaws.com/lost/index.html","Page 1 Yahoo",12]
[null,"http://ec2-50-19-31-202.compute-1.amazonaws.com/lost/longh1.html","Page 1 Yahoo",12]
[null,"http://ec2-50-19-31-202.compute-1.amazonaws.com/lost/multipleh1.html","Page 1 Yahoo",12]
[null,"http://ec2-50-19-31-202.compute-1.amazonaws.com/lost/page2.html","Page 2 YAHOO",12]
[null,"http://ec2-50-19-31-202.compute-1.amazonaws.com/lost/page4.html","Page 4 yahoo",12]
[null,"http://ec2-50-19-31-202.compute-1.amazonaws.com/lost/page4.html?a=1&b=2&c=3&d=4&e=5&f=6&g=7","Page 4 yahoo",12]
[null,"http://ec2-50-19-31-202.compute-1.amazonaws.com/lost/shorth1.html","Page 1 Yahoo",12]
[null,"http://ec2-50-19-31-202.compute-1.amazonaws.com/lost/shorth1title.html","19aaaaaaaaaaaaaaaaa",19]
[null,"http://ec2-50-19-31-202.compute-1.amazonaws.com/lost/shorth1titlemk.html","19aaaaaaaaaaaaaaaaa",19]
[null,"http://ec2-50-19-31-202.compute-1.amazonaws.com/lost/shorth1titlemkmd.html","19aaaaaaaaaaaaaaaaa",19]

{"sheet":"Duplicate Meta Keywords","index":17,"n_rows":17,"n_cols":3,"rows_kept":17,"cut":false,"hidden":false,"merged":[]}
[]
[]
[null,"Duplicate Meta Keywords"]
[]
[null,"Pages found with duplicate meta keyword tags"]
[null,"Total Count: 8"]
[]
[null,"Issue Severity: Warning"]
[null,"URL","Duplicate"]
[null,"http://ec2-50-19-31-202.compute-1.amazonaws.com/lost/multipleh1titlemkmd.html","251aaaaaaaaaaaaaaaaaaaaaaaaaaaaaaaaaaaaaaaaaaaaaaaaaaaaaaaaaaaaaaaaaaaaaaaaaaaaaaaaaaaaaaaaaaaaaaaaaaaaaaaaaaaaaaaaaaaaaaaaaaaaaaaaaaaaaaaaaaaaaaaaaaaaaaaaaaaaaaaaaaaaaaaaaaaaaaaaaaaaaaaaaaaaaaaaaaaaaaaaaaaaaaaaaaaaaaaaaaaaaaaaaaaaaaaaaaaaaaaaaaaaaaaa--||TSA||--250aaaaaaaaaaaaaaaaaaaaaaaaaaaaaaaaaaaaaaaaaaaaaaaaaaaaaaaaaaaaaaaaaaaaaaaaaaaaaaaaaaaaaaaaaaaaaaaaaaaaaaaaaaaaaaaaaaaaaaaaaaaaaaaaaaaaaaaaaaaaaaaaaaaaaaaaaaaaaaaaaaaaaaaaaaaaaaaaaaaaaaaaaaaaaaaaaaaaaaaaaaaaaaaaaaaaaaaaaaaaaaaaaaaaaaaaaaaaaaaaaaaaaaa--||TSA||--80aaaaaaaaaaaaaaaaaaaaaaaaaaaaaaaaaaaaaaaaaaaaaaaaaaaaaaaaaaaaaaaaaaaaaaaaaaaaaa--||TSA||--79aaaaaaaaaaaaaaaaaaaaaaaaaaaaaaaaaaaaaaaaaaaaaaaaaaaaaaaaaaaaaaaaaaaaaaaaaaaaa"]
[null,"http://ec2-50-19-31-202.compute-1.amazonaws.com/lost/multipleh1titlemk.html","251aaaaaaaaaaaaaaaaaaaaaaaaaaaaaaaaaaaaaaaaaaaaaaaaaaaaaaaaaaaaaaaaaaaaaaaaaaaaaaaaaaaaaaaaaaaaaaaaaaaaaaaaaaaaaaaaaaaaaaaaaaaaaaaaaaaaaaaaaaaaaaaaaaaaaaaaaaaaaaaaaaaaaaaaaaaaaaaaaaaaaaaaaaaaaaaaaaaaaaaaaaaaaaaaaaaaaaaaaaaaaaaaaaaaaaaaaaaaaaaaaaaaaaaa--||TSA||--250aaaaaaaaaaaaaaaaaaaaaaaaaaaaaaaaaaaaaaaaaaaaaaaaaaaaaaaaaaaaaaaaaaaaaaaaaaaaaaaaaaaaaaaaaaaaaaaaaaaaaaaaaaaaaaaaaaaaaaaaaaaaaaaaaaaaaaaaaaaaaaaaaaaaaaaaaaaaaaaaaaaaaaaaaaaaaaaaaaaaaaaaaaaaaaaaaaaaaaaaaaaaaaaaaaaaaaaaaaaaaaaaaaaaaaaaaaaaaaaaaaaaaaa--||TSA||--80aaaaaaaaaaaaaaaaaaaaaaaaaaaaaaaaaaaaaaaaaaaaaaaaaaaaaaaaaaaaaaaaaaaaaaaaaaaaaa--||TSA||--79aaaaaaaaaaaaaaaaaaaaaaaaaaaaaaaaaaaaaaaaaaaaaaaaaaaaaaaaaaaaaaaaaaaaaaaaaaaaa"]
[null,"http://ec2-50-19-31-202.compute-1.amazonaws.com/lost/Copyofmultipleh1titlemkmd.html","251aaaaaaaaaaaaaaaaaaaaaaaaaaaaaaaaaaaaaaaaaaaaaaaaaaaaaaaaaaaaaaaaaaaaaaaaaaaaaaaaaaaaaaaaaaaaaaaaaaaaaaaaaaaaaaaaaaaaaaaaaaaaaaaaaaaaaaaaaaaaaaaaaaaaaaaaaaaaaaaaaaaaaaaaaaaaaaaaaaaaaaaaaaaaaaaaaaaaaaaaaaaaaaaaaaaaaaaaaaaaaaaaaaaaaaaaaaaaaaaaaaaaaaaa--||TSA||--250aaaaaaaaaaaaaaaaaaaaaaaaaaaaaaaaaaaaaaaaaaaaaaaaaaaaaaaaaaaaaaaaaaaaaaaaaaaaaaaaaaaaaaaaaaaaaaaaaaaaaaaaaaaaaaaaaaaaaaaaaaaaaaaaaaaaaaaaaaaaaaaaaaaaaaaaaaaaaaaaaaaaaaaaaaaaaaaaaaaaaaaaaaaaaaaaaaaaaaaaaaaaaaaaaaaaaaaaaaaaaaaaaaaaaaaaaaaaaaaaaaaaaaa--||TSA||--80aaaaaaaaaaaaaaaaaaaaaaaaaaaaaaaaaaaaaaaaaaaaaaaaaaaaaaaaaaaaaaaaaaaaaaaaaaaaaa--||TSA||--79aaaaaaaaaaaaaaaaaaaaaaaaaaaaaaaaaaaaaaaaaaaaaaaaaaaaaaaaaaaaaaaaaaaaaaaaaaaaa"]
[null,"http://ec2-50-19-31-202.compute-1.amazonaws.com/lost/Copyofshorth1titlemkmd.html","79aaaaaaaaaaaaaaaaaaaaaaaaaaaaaaaaaaaaaaaaaaaaaaaaaaaaaaaaaaaaaaaaaaaaaaaaaaaaa"]
[null,"http://ec2-50-19-31-202.compute-1.amazonaws.com/lost/shorth1titlemk.html","79aaaaaaaaaaaaaaaaaaaaaaaaaaaaaaaaaaaaaaaaaaaaaaaaaaaaaaaaaaaaaaaaaaaaaaaaaaaaa"]
[null,"http://ec2-50-19-31-202.compute-1.amazonaws.com/lost/shorth1titlemkmd.html","79aaaaaaaaaaaaaaaaaaaaaaaaaaaaaaaaaaaaaaaaaaaaaaaaaaaaaaaaaaaaaaaaaaaaaaaaaaaaa"]
[null,"http://ec2-50-19-31-202.compute-1.amazonaws.com/lost/longh1titlemkmd.html","251aaaaaaaaaaaaaaaaaaaaaaaaaaaaaaaaaaaaaaaaaaaaaaaaaaaaaaaaaaaaaaaaaaaaaaaaaaaaaaaaaaaaaaaaaaaaaaaaaaaaaaaaaaaaaaaaaaaaaaaaaaaaaaaaaaaaaaaaaaaaaaaaaaaaaaaaaaaaaaaaaaaaaaaaaaaaaaaaaaaaaaaaaaaaaaaaaaaaaaaaaaaaaaaaaaaaaaaaaaaaaaaaaaaaaaaaaaaaaaaaaaaaaaaa"]
[null,"http://ec2-50-19-31-202.compute-1.amazonaws.com/lost/longh1titlemk.html","251aaaaaaaaaaaaaaaaaaaaaaaaaaaaaaaaaaaaaaaaaaaaaaaaaaaaaaaaaaaaaaaaaaaaaaaaaaaaaaaaaaaaaaaaaaaaaaaaaaaaaaaaaaaaaaaaaaaaaaaaaaaaaaaaaaaaaaaaaaaaaaaaaaaaaaaaaaaaaaaaaaaaaaaaaaaaaaaaaaaaaaaaaaaaaaaaaaaaaaaaaaaaaaaaaaaaaaaaaaaaaaaaaaaaaaaaaaaaaaaaaaaaaaaa"]

{"sheet":"Multiple Meta Keywords","index":18,"n_rows":12,"n_cols":3,"rows_kept":12,"cut":false,"hidden":false,"merged":[]}
[]
[]
[null,"Multiple Meta Keywords"]
[]
[null,"Pages found with multiple meta keyword tags"]
[null,"Total Count: 3"]
[]
[null,"Issue Severity: Warning"]
[null,"URL","Count"]
[null,"http://ec2-50-19-31-202.compute-1.amazonaws.com/lost/Copyofmultipleh1titlemkmd.html",4]
[null,"http://ec2-50-19-31-202.compute-1.amazonaws.com/lost/multipleh1titlemk.html",4]
[null,"http://ec2-50-19-31-202.compute-1.amazonaws.com/lost/multipleh1titlemkmd.html",4]

{"sheet":"URL Capitalization","index":19,"n_rows":11,"n_cols":3,"rows_kept":11,"cut":false,"hidden":false,"merged":[]}
[]
[]
[null,"URL Capitalization"]
[]
[null,"URLs found with capital lettering"]
[null,"Total Count: 2"]
[]
[null,"Issue Severity: Warning"]
[null,"URL","Capital Letter Count"]
[null,"http://ec2-50-19-31-202.compute-1.amazonaws.com/lost/Copyofmultipleh1titlemkmd.html",1]
[null,"http://ec2-50-19-31-202.compute-1.amazonaws.com/lost/Copyofshorth1titlemkmd.html",1]

{"sheet":"Short H1 Tags","index":20,"n_rows":14,"n_cols":4,"rows_kept":14,"cut":false,"hidden":false,"merged":[]}
[]
[]
[null,"Short H1 Tags"]
[]
[null,"Pages found with H1 tag shorter than 15 characters"]
[null,"Total Count: 5"]
[]
[null,"Issue Severity: Info"]
[null,"URL","H1 Tags","Character Count"]
[null,"http://ec2-50-19-31-202.compute-1.amazonaws.com/lost/Copyofshorth1titlemkmd.html","14aaaaaaaaaaaa",14]
[null,"http://ec2-50-19-31-202.compute-1.amazonaws.com/lost/shorth1.html","14aaaaaaaaaaaa",14]
[null,"http://ec2-50-19-31-202.compute-1.amazonaws.com/lost/shorth1title.html","14aaaaaaaaaaaa",14]
[null,"http://ec2-50-19-31-202.compute-1.amazonaws.com/lost/shorth1titlemk.html","14aaaaaaaaaaaa",14]
[null,"http://ec2-50-19-31-202.compute-1.amazonaws.com/lost/shorth1titlemkmd.html","14aaaaaaaaaaaa",14]

{"sheet":"Short Meta Keywords","index":21,"n_rows":12,"n_cols":4,"rows_kept":12,"cut":false,"hidden":false,"merged":[]}
[]
[]
[null,"Short Meta Keywords"]
[]
[null,"Pages found with meta keyword tag shorter than 80 characters"]
[null,"Total Count: 3"]
[]
[null,"Issue Severity: Info"]
[null,"URL","Meta Keywords","Character Count"]
[null,"http://ec2-50-19-31-202.compute-1.amazonaws.com/lost/Copyofshorth1titlemkmd.html","79aaaaaaaaaaaaaaaaaaaaaaaaaaaaaaaaaaaaaaaaaaaaaaaaaaaaaaaaaaaaaaaaaaaaaaaaaaaaa",79]
[null,"http://ec2-50-19-31-202.compute-1.amazonaws.com/lost/shorth1titlemk.html","79aaaaaaaaaaaaaaaaaaaaaaaaaaaaaaaaaaaaaaaaaaaaaaaaaaaaaaaaaaaaaaaaaaaaaaaaaaaaa",79]
[null,"http://ec2-50-19-31-202.compute-1.amazonaws.com/lost/shorth1titlemkmd.html","79aaaaaaaaaaaaaaaaaaaaaaaaaaaaaaaaaaaaaaaaaaaaaaaaaaaaaaaaaaaaaaaaaaaaaaaaaaaaa",79]

{"sheet":"Remaining Urls_1","index":22,"n_rows":9,"n_cols":11,"rows_kept":9,"cut":false,"hidden":true,"merged":[]}
[]
[]
[null,"Remaining Urls_1"]
[]
[null,"URLs without issues"]
[null,"Total Count: 1"]
[]
[]
[null,"PageID","URL","Title","Meta Description","Meta Keyword","H1","Page Size","Response Code","Response Time","Comments"]

{"sheet":"Spidered Urls_1","index":23,"n_rows":9,"n_cols":11,"rows_kept":9,"cut":false,"hidden":true,"merged":[]}
[]
[]
[null,"Spidered Urls_1"]
[]
[null,"Spidered URLs (raw data)"]
[null,"Total Count: 22"]
[]
[]
[null,"PageID","URL","Title","Meta Description","Meta Keyword","H1","Page Size","Response Code","Response Time","Comments"]

{"sheet":"Report Data","index":24,"n_rows":100,"n_cols":26,"rows_kept":100,"cut":false,"hidden":true,"merged":[[6,10,6,12],[11,10,11,11]]}
[]
[]
[null,"User Agent:","Mozilla/5.0 (compatible; Googlebot/2.1; +http://www.google.com/bot.html)"]
[]
[]
[]
[null,null,null,null,null,null,null,null,null,null,"Issues / Non-Issues",null,null,null,"Severity","%"]
[null,"Site Architecture Analysis Summary",null,null,null,null,null,null,null,null,"Issues",{"$f":"L10-L9","v":22},{"$f":"L8/L10","v":1},null,"Critical",{"$f":"Summary!G9/Summary!$G$12","v":0.63846153846153841}]
[null,null,null,null,null,null,null,null,null,null,"Non-Issues (\"Remaining Urls\")",0,{"$f":"L9/L10","v":0},null,"Warning",{"$f":"Summary!G10/Summary!$G$12","v":0.3}]
[null,null,null,null,null,null,null,null,null,null,"Spidered (\"Spidered Urls\")",22,null,null,"Info",{"$f":"Summary!G11/Summary!$G$12","v":6.1538461538461542E-2}]
[]
[null,"Short Desc","Long Desc","Number","Priority",null,null,null,null,null,"Issues Only",null,null,null,"CRITICAL",null,"WARNING",null,"INFO"]
[null,"Spidered Urls_1","Spidered URLs (raw data)",22,"",null,null,null,null,null,"Long Meta Descriptions",1,null,null,"Long Meta Descriptions",null,"Missing Meta Keywords",null,"Short H1 Tags"]
[null,"Long Meta Descriptions","Pages found with meta descriptions longer than 400 characters",1,"Critical",null,null,null,null,null,"Missing Meta Keywords",14,null,null,"Multiple Title Tags",null,"Short Title Tags",null,"Short Meta Keywords"]
[null,"Remaining Urls_1","URLs without issues",0,"",null,null,null,null,null,"Multiple Title Tags",4,null,null,"Long Title Tags",null,"URL Capitalization"]
[null,"Missing Meta Keywords","Pages found missing a meta keyword tag",14,"Warning",null,null,null,null,null,"Short Title Tags",12,null,null,"Duplicate Title Tags",null,"Duplicate Meta Keywords"]
[null,"Multiple Title Tags","Pages found with multiple title tags",4,"Critical",null,null,null,null,null,"Long Title Tags",3,null,null,"Duplicate Meta Description",null,"Multiple Meta Keywords"]
[null,"Short Title Tags","Pages found with title tag shorter than 20 characters",12,"Warning",null,null,null,null,null,"Duplicate Title Tags",18,null,null,"Missing H1 Tag"]
[null,"Long Title Tags","Pages found with title tags longer than 150 characters",3,"Critical",null,null,null,null,null,"Duplicate Meta Description",2,null,null,"Duplicate H1 Tags"]
[null,"Duplicate Title Tags","Pages found with duplicate title tags",18,"Critical",null,null,null,null,null,"URL Capitalization",2,null,null,"Short Meta Descriptions"]
[null,"Duplicate Meta Description","Pages found with duplicate meta description tags",2,"Critical",null,null,null,null,null,"Missing H1 Tag",3,null,null,"Missing Meta Description"]
[null,"URL Capitalization","URLs found with capital lettering",2,"Warning",null,null,null,null,null,"Duplicate H1 Tags",18,null,null,"404s"]
[null,"Missing H1 Tag","Pages found missing an H1 tag",3,"Critical",null,null,null,null,null,"Duplicate Meta Keywords",8,null,null,"Appended Parameters"]
[null,"Duplicate H1 Tags","Pages found with duplicate H1 tags",18,"Critical",null,null,null,null,null,"Short Meta Descriptions",2,null,null,"Missing Title Tags"]
[null,"Duplicate Meta Keywords","Pages found with duplicate meta keyword tags",8,"Warning",null,null,null,null,null,"Missing Meta Description",17,null,null,"Multiple Meta Description"]
[null,"Short Meta Descriptions","Pages found with meta description tag shorter than 125 characters",2,"Critical",null,null,null,null,null,"404s",3,null,null,"Multiple H1 Tags"]
[null,"Missing Meta Description","Pages found missing a meta description tag",17,"Critical",null,null,null,null,null,"Appended Parameters",2]
[null,"404s","Page Error found - Page Not Found - 404 Response Code",3,"Critical",null,null,null,null,null,"Short H1 Tags",5]
[null,"Appended Parameters","URLs found with appended parameters",2,"Critical",null,null,null,null,null,"Missing Title Tags",3]
[null,"Short H1 Tags","Pages found with H1 tag shorter than 15 characters",5,"Info",null,null,null,null,null,"Multiple Meta Description",2]
[null,"Missing Title Tags","Pages found missing a title tag",3,"Critical",null,null,null,null,null,"Multiple Meta Keywords",3]
[null,"Multiple Meta Description","Pages found with multiple meta description tags",2,"Critical",null,null,null,null,null,"Multiple H1 Tags",5]
[null,"Multiple Meta Keywords","Pages found with multiple meta keyword tags",3,"Warning",null,null,null,null,null,"Short Meta Keywords",3]
[null,"Multiple H1 Tags","Pages found with multiple H1 tags",5,"Critical"]
[null,"Short Meta Keywords","Pages found with meta keyword tag shorter than 80 characters",3,"Info"]
[]
[]
[]
[]
[]
[]
[]
[]
[]
[]
[]
[]
[]
[]
[]
[]
[]
[]
[]
[]
[]
[]
[]
[]
[]
[]
[]
[]
[]
[]
[]
[]
[]
[]
[]
[]
[]
[]
[]
[]
[]
[]
[]
[]
[]
[]
[]
[]
[]
[]
[]
[]
[]
[]
[]
[]
[]
[]
[]
[]
[]
[]
[]
[]
[null,null,null,null,null,null,null,null,null,null,null,null,null,null,null,null,null,null,null,null,null,null,null,null,null,false]